Workbook

Sheet Main
A1: Enter Values in the Green Fields | G1: Input | H1: Player DV | I1: Initialization Range | K1: Initial OF Low = | L1: 43.32318844
A2: Edit code in model, assign, and constraint subroutines and declarations. | G2: Labels | H2: Values | I2: Low | J2: High | K2: Initial OF High = | L2: 88.95818411 | Q2: confidence | R2: 0.99
G3: 1 | H3: 7.911471857 | I3: 0 | J3: 10 | K3: 1.51833405 | L3: 6 | N3: Confidence = | O3: 0.99 | Q3: ln(1-c) | R3: =LN(1-R2) -> -4.605170186
A4: Number of Adjustable Model Coefficients (max 10) | C4: Nvar = | D4: 12 | E4: Trial = | F4: 500 | G4: 2 | H4: 1.728146315 | I4: 0 | J4: 10 | K4: 1.728141256 | L4: 2 | N4: Best Fraction = | O4: 0.05 | Q4: ln(1-f^N) | R4: =LN(1-0.1^D4) -> -9.999778783e-13
A5: Trial Starting Number | C5: Start Num = | D5: 1 | E5: Iteration = | F5: 68 | G5: 3 | H5: 9.358953805 | I5: 0 | J5: 10 | K5: 1.796113491 | L5: 10 | N5: Desired N Trials = | O5: =INT(0.5+LN(1-O3)/LN(1-O4)) -> 90
A6: Trial Ending Number | C6: EndNum = | D6: 500 | E6: NOFE = | F6: 936 | G6: 4 | H6: 5.258058775 | I6: 0 | J6: 10 | K6: 2.428462618 | L6: 7 | Q6: Initializations | R6: =R3/R4 -> 4.605272063e+12
A7: Maximum Iterations to "give-up" regression | C7: Max Iter = | D7: 1000 | G7: 5 | H7: 7.337939668 | I7: 0 | J7: 10 | K7: 4.031458813 | L7: 9
A8: Window Amplification | C8: "A" or value | D8: A | E8: constraint = | F8: PASS | G8: 6 | H8: 1.350640384 | I8: 0 | J8: 10 | K8: 5.258058775 | L8: 4 | N8: Watch Progress (Y/N)= | O8: N | S8: 2Sig+ | T8: 2sig-
A9: Number of LF players (~10*Nvar) (max 100) | C9: Nplayers = | D9: =10*D4 -> 120 | E9: Best # = | F9: 93 | G9: 7 | H9: 2.428401072 | I9: 0 | J9: 10 | K9: 6.401553162 | L9: 8 | N9: IncludePriorBest (Y/N)= | O9: N | Q9: confidence | R9: 0.99
A10: Number of Initializations | C10: Initializations = | D10: 0 | E10: Worst # = | F10: 36 | G10: 8 | H10: 6.401473537 | I10: 0 | J10: 10 | K10: 7.338339072 | L10: 5 | N10: ShowPlayers (Y/N)= | O10: N | Q10: fract | R10: =F15 -> 0.114 | S10: =R10+SQRT(R10*(1-R10)/D6) -> 0.1282129518 | T10: =R10-SQRT(R10*(1-R10)/D6) -> 0.09978704816
A11: Convergence threshold | C11: rmsOF/OFLow = | D11: 0.001 | E11: Worst OF= | F11: 34.09663839 | G11: 9 | H11: 4.031458774 | I11: 0 | J11: 10 | K11: 7.810298993 | L11: 11 | Q11: N | R11: =LN(1-R9)/LN(1-R10) -> 38.04720577 | S11: =LN(1-R9)/LN(1-S10) -> 33.56291067 | T11: =LN(1-R9)/LN(1-T10) -> 43.80705863
C12: or Avg_DV_Range | E12: Best OF = | F12: 34.09663839 | G12: 10 | H12: 1.796118089 | I12: 0 | J12: 10 | K12: 7.921531352 | L12: 1 | Q12: PNOFE | R12: =C22*R11 -> 39523.13298 | S12: =(C22-2*C21)*S11 -> 22531.4113 | T12: =(C22+2*C21)*T11 -> 61604.34417
E13: OF CV = | F13: 0 | G13: 11 | H13: 7.80836859 | I13: 0 | J13: 10 | K13: 8.469536306 | L13: 12
G14: 12 | H14: 8.46953899 | I14: 0 | J14: 10 | K14: 9.358954056 | L14: 3
E15: Fract at Global = | F15: 0.114 | G15: 13 | I15: 0 | J15: 10
G16: 14 | I16: 0 | J16: 10
G17: 15 | I17: 0 | J17: 10
G18: 16 | I18: 0 | J18: 10
G19: 17 | I19: 0 | J19: 10
G20: 18 | I20: 0 | J20: 10
B21: StDev NOFE = | C21: =STDEV(C24:C1025) -> 183.7366241 | G21: 19 | I21: 0 | J21: 10
A22: Optimization Results | B22: avg NOFE = | C22: =AVERAGE(C24:C1025) -> 1038.792 | G22: 20 | I22: 0 | J22: 10
A23: Trial | B23: Stop Iteration | C23: NOFE | D23: OFLow | E23: 1 | F23: 2 | G23: 3 | H23: 4 | I23: 5 | J23: 6 | K23: 7 | L23: 8 | M23: 9 | N23: 10 | O23: 11 | P23: 12
A24: 1 | B24: 109 | C24: 1428 | D24: 33.38393236 | E24: 6.742706398 | F24: 4.072860403 | G24: 3.167008175 | H24: 5.638531459 | I24: 6.544665011 | J24: 3.51435159 | K24: 4.975003107 | L24: 5.824690722 | M24: 5.038255512 | N24: 4.898289013 | O24: 7.495569346 | P24: 7.868678643
A25: 2 | B25: 87 | C25: 1164 | D25: 34.39040253 | E25: 5.909964192 | F25: 8.979462682 | G25: 8.994415269 | H25: 7.239608281 | I25: 5.968470258 | J25: 8.982045392 | K25: 0.7987732009 | L25: 7.169451965 | M25: 0.8720400476 | N25: 7.782949378 | O25: 4.491423018 | P25: 1.736629584
A26: 3 | B26: 62 | C26: 864 | D26: 34.59539079 | E26: 2.773096932 | F26: 7.058412394 | G26: 7.414403194 | H26: 0.7658867957 | I26: 3.37828632 | J26: 7.26221102 | K26: 0.1199933567 | L26: 4.667497113 | M26: 0.651094201 | N26: 5.621880272 | O26: 2.608566362 | P26: 2.519208462
A27: 4 | B27: 80 | C27: 1080 | D27: 34.33063888 | E27: 4.718990208 | F27: 8.06474688 | G27: 3.105955082 | H27: 6.291015017 | I27: 4.995770592 | J27: 2.046342983 | K27: 7.016079987 | L27: 5.422228725 | M27: 6.375270502 | N27: 7.263809975 | O27: 3.25230568 | P27: 3.248139586
A28: 5 | B28: 93 | C28: 1236 | D28: 35.94701116 | E28: 4.211990678 | F28: 5.539491034 | G28: 9.552148875 | H28: 4.957604126 | I28: 3.161350243 | J28: 5.695153504 | K28: 5.001033685 | L28: 2.401417897 | M28: 2.358458718 | N28: 5.372752664 | O28: 3.536248691 | P28: 4.359944403
A29: 6 | B29: 84 | C29: 1128 | D29: 35.02752128 | E29: 2.591131684 | F29: 1.677889788 | G29: 0.9494324839 | H29: 4.707169088 | I29: 2.865415622 | J29: 1.112763592 | K29: 2.323217018 | L29: 3.548561887 | M29: 6.609136362 | N29: 1.97763847 | O29: 2.7467678 | P29: 2.52100289
A30: 7 | B30: 85 | C30: 1140 | D30: 34.9918834 | E30: 3.680276092 | F30: 7.259950174 | G30: 8.59226727 | H30: 0.3804779417 | I30: 2.891535941 | J30: 8.406676406 | K30: 5.281242087 | L30: 1.215231105 | M30: 4.687485984 | N30: 5.356320285 | O30: 3.241703427 | P30: 4.031632446
A31: 8 | B31: 75 | C31: 1020 | D31: 38.06763376 | E31: 3.746421867 | F31: 6.171137721 | G31: 9.594749561 | H31: 7.717894376 | I31: 3.760249738 | J31: 9.473562711 | K31: 7.713873063 | L31: 5.276521943 | M31: 8.994386269 | N31: 5.278683045 | O31: 1.629796583 | P31: 0.9899903797
A32: 9 | B32: 75 | C32: 1020 | D32: 34.98981868 | E32: 5.655082968 | F32: 2.035034943 | G32: 1.244515606 | H32: 7.547782802 | I32: 5.795955881 | J32: 1.890143003 | K32: 8.882069554 | L32: 6.553052564 | M32: 4.251702224 | N32: 2.579893222 | O32: 5.784734624 | P32: 5.132886091
A33: 10 | B33: 63 | C33: 876 | D33: 37.42575492 | E33: 2.162196027 | F33: 8.140482362 | G33: 0.9295948332 | H33: 5.308685335 | I33: 4.083884023 | J33: 0.4840711419 | K33: 8.260203289 | L33: 4.837708038 | M33: 9.622823717 | N33: 6.659908069 | O33: 1.891829606 | P33: 1.003741136
A34: 11 | B34: 68 | C34: 936 | D34: 34.59539079 | E34: 3.287000477 | F34: 8.727837689 | G34: 8.882297109 | H34: 0.5876769882 | I34: 5.27067993 | J34: 8.850595743 | K34: 0.2658676844 | L34: 5.417377968 | M34: 0.355549374 | N34: 7.395507602 | O34: 1.345543088 | P34: 0.9665893205
A35: 12 | B35: 77 | C35: 1044 | D35: 33.38393236 | E35: 7.758353366 | F35: 1.146266327 | G35: 0.3777540754 | H35: 4.752682349 | I35: 5.987704575 | J35: 0.7142556824 | K35: 4.231551602 | L35: 4.974998823 | M35: 4.453750304 | N35: 3.812753929 | O35: 7.798446249 | P35: 8.417125388
A36: 13 | B36: 78 | C36: 1056 | D36: 34.76754058 | E36: 6.067499998 | F36: 1.67804929 | G36: 0.6310900337 | H36: 7.464454338 | I36: 3.186641906 | J36: 1.051597378 | K36: 7.522598079 | L36: 2.768031862 | M36: 9.17784347 | N36: 2.738549166 | O36: 3.685513725 | P36: 6.959736891
A37: 14 | B37: 87 | C37: 1164 | D37: 39.04066922 | E37: 3.54437449 | F37: 0.6296165045 | G37: 3.800061083 | H37: 6.431892146 | I37: 2.930216001 | J37: 4.047165942 | K37: 8.788409491 | L37: 2.837854002 | M37: 4.885594327 | N37: 2.721720229 | O37: 3.368748247 | P37: 3.772609009
A38: 15 | B38: 50 | C38: 720 | D38: 37.87657048 | E38: 5.071997308 | F38: 2.188624633 | G38: 0.8846419324 | H38: 8.418293339 | I38: 3.240094601 | J38: 1.948600079 | K38: 9.550733514 | L38: 2.376410078 | M38: 8.431425182 | N38: 9.815379021 | O38: 3.622566119 | P38: 6.290567925
A39: 16 | B39: 49 | C39: 708 | D39: 34.9918834 | E39: 6.981375743 | F39: 1.712477606 | G39: 0.01449212254 | H39: 9.577768567 | I39: 8.740787133 | J39: 0.3859096315 | K39: 3.267486529 | L39: 9.534639375 | M39: 4.713294875 | N39: 2.019859842 | O39: 7.206903089 | P39: 5.560778247
A40: 17 | B40: 79 | C40: 1068 | D40: 35.47980524 | E40: 5.881802116 | F40: 7.566404574 | G40: 1.407261169 | H40: 4.262806843 | I40: 6.359292412 | J40: 3.360022107 | K40: 3.794320889 | L40: 6.830129234 | M40: 3.9694871 | N40: 7.048513965 | O40: 5.591017557 | P40: 5.451832466
A41: 18 | B41: 82 | C41: 1104 | D41: 33.38393236 | E41: 7.39541569 | F41: 2.232626596 | G41: 1.411577614 | H41: 5.142711805 | I41: 6.955767733 | J41: 2.011970091 | K41: 4.465594659 | L41: 5.798024061 | M41: 4.999708394 | N41: 2.821624403 | O41: 7.136318486 | P41: 7.928616027
A42: 19 | B42: 60 | C42: 840 | D42: 37.50391951 | E42: 8.414908849 | F42: 4.966488991 | G42: 0.4029716079 | H42: 5.517173095 | I42: 6.788845593 | J42: 0.7069997591 | K42: 1.838450121 | L42: 5.849065467 | M42: 3.344177038 | N42: 5.499066619 | O42: 8.317822867 | P42: 9.903695668
A43: 20 | B43: 51 | C43: 732 | D43: 35.78083234 | E43: 7.135897141 | F43: 0.7443978338 | G43: 0.1228334285 | H43: 2.221790543 | I43: 5.371197062 | J43: 9.298422481 | K43: 3.862406557 | L43: 5.034987744 | M43: 4.547503402 | N43: 1.847762263 | O43: 8.010879912 | P43: 8.678717075
A44: 21 | B44: 73 | C44: 996 | D44: 36.97842274 | E44: 7.656693925 | F44: 8.564804419 | G44: 9.663454413 | H44: 1.795064305 | I44: 6.882052017 | J44: 9.273164911 | K44: 3.088680144 | L44: 3.367806756 | M44: 0.6543541092 | N44: 8.480544837 | O44: 8.029723269 | P44: 8.159379718
A45: 22 | B45: 59 | C45: 828 | D45: 39.52708829 | E45: 5.103661488 | F45: 4.093938447 | G45: 4.712289734 | H45: 2.529807613 | I45: 5.019014345 | J45: 4.257102517 | K45: 0.7528721498 | L45: 4.90440008 | M45: 0.08361051192 | N45: 3.32977159 | O45: 5.530595421 | P45: 9.638921412
A46: 23 | B46: 77 | C46: 1044 | D46: 35.2055061 | E46: 2.927252905 | F46: 6.027502651 | G46: 7.344407756 | H46: 1.440339597 | I46: 2.511222509 | J46: 8.890077205 | K46: 5.878149902 | L46: 1.487407012 | M46: 4.396074649 | N46: 5.97295873 | O46: 3.253107769 | P46: 4.182240591
A47: 24 | B47: 60 | C47: 840 | D47: 34.98981868 | E47: 4.18761489 | F47: 6.349727249 | G47: 9.847280584 | H47: 1.150926059 | I47: 3.315097603 | J47: 7.029508227 | K47: 0.1363516851 | L47: 1.644131422 | M47: 4.522604801 | N47: 5.761563415 | O47: 4.043068858 | P47: 4.447924968
A48: 25 | B48: 122 | C48: 1584 | D48: 35.02752128 | E48: 6.891365468 | F48: 8.364257596 | G48: 8.853374585 | H48: 4.683342582 | I48: 6.716776148 | J48: 8.630578582 | K48: 7.402937481 | L48: 6.016862069 | M48: 2.374718958 | N48: 8.27326856 | O48: 6.892351438 | P48: 6.963790427
A49: 26 | B49: 76 | C49: 1032 | D49: 37.55954059 | E49: 6.43187812 | F49: 2.77728408 | G49: 2.032452298 | H49: 3.582108542 | I49: 5.674136396 | J49: 2.629916163 | K49: 1.275873731 | L49: 5.556807319 | M49: 1.018012086 | N49: 3.094829742 | O49: 7.486394976 | P49: 7.633833739
A50: 27 | B50: 52 | C50: 744 | D50: 44.54133514 | E50: 0.7013424014 | F50: 2.922573703 | G50: 9.299940698 | H50: 6.9574313 | I50: 2.75614995 | J50: 2.891659525 | K50: 8.078060869 | L50: 6.111288501 | M50: 7.670722308 | N50: 4.779041233 | O50: 0.8778588918 | P50: 0.6027771433
A51: 28 | B51: 81 | C51: 1092 | D51: 33.38393236 | E51: 2.084208088 | F51: 7.016229636 | G51: 9.440610165 | H51: 2.895768063 | I51: 2.244645315 | J51: 7.279173364 | K51: 5.155434391 | L51: 2.649646014 | M51: 4.529133146 | N51: 6.151913334 | O51: 1.997925378 | P51: 1.891335574
A52: 29 | B52: 84 | C52: 1128 | D52: 33.72740431 | E52: 8.470656454 | F52: 1.482102106 | G52: 0.883789659 | H52: 4.129127383 | I52: 7.137477007 | J52: 1.134866738 | K52: 3.643639109 | L52: 5.837366672 | M52: 2.74922216 | N52: 1.656220674 | O52: 8.262286603 | P52: 8.83294549
A53: 30 | B53: 76 | C53: 1032 | D53: 34.76754058 | E53: 5.618568206 | F53: 8.263497794 | G53: 9.716027079 | H53: 4.020426436 | I53: 5.771507741 | J53: 8.436820277 | K53: 3.990041656 | L53: 6.543736507 | M53: 3.115280821 | N53: 7.422284287 | O53: 5.151970426 | P53: 5.053591224
A54: 31 | B54: 76 | C54: 1032 | D54: 38.19645182 | E54: 2.886901447 | F54: 7.658219459 | G54: 7.556102578 | H54: 4.067368919 | I54: 3.561904956 | J54: 5.098568641 | K54: 8.468341115 | L54: 3.964167703 | M54: 9.788398689 | N54: 8.335554568 | O54: 2.031923092 | P54: 1.964824896
A55: 32 | B55: 69 | C55: 948 | D55: 37.51694075 | E55: 6.151730757 | F55: 7.063768644 | G55: 9.111453145 | H55: 6.692408343 | I55: 3.045081216 | J55: 7.127464567 | K55: 0.5389343772 | L55: 6.564303556 | M55: 2.149612673 | N55: 0.5131498624 | O55: 3.032553242 | P55: 2.557942161
A56: 33 | B56: 77 | C56: 1044 | D56: 36.59531817 | E56: 4.880190559 | F56: 2.404444738 | G56: 2.598209611 | H56: 6.410551375 | I56: 5.759993266 | J56: 1.853809495 | K56: 7.942567377 | L56: 5.767205761 | M56: 7.816153795 | N56: 8.057950647 | O56: 3.854771721 | P56: 3.740576694
A57: 34 | B57: 85 | C57: 1140 | D57: 34.59539079 | E57: 5.648893537 | F57: 7.843052091 | G57: 8.757282296 | H57: 2.73157923 | I57: 5.712379174 | J57: 8.245496604 | K57: 2.450369284 | L57: 6.353205543 | M57: 2.702703209 | N57: 7.442243354 | O57: 5.690909985 | P57: 5.297583884
A58: 35 | B58: 92 | C58: 1224 | D58: 34.98981868 | E58: 4.01498722 | F58: 8.924211923 | G58: 9.324674297 | H58: 3.533767672 | I58: 4.002064574 | J58: 9.106981611 | K58: 3.532334056 | L58: 3.714636381 | M58: 7.014480821 | N58: 8.445967323 | O58: 5.030173018 | P58: 5.161631696
A59: 36 | B59: 83 | C59: 1116 | D59: 35.02752128 | E59: 4.688991025 | F59: 2.142584179 | G59: 1.467582396 | H59: 5.965475722 | I59: 5.472518383 | J59: 1.477168429 | K59: 3.331188951 | L59: 5.504183252 | M59: 6.805889372 | N59: 2.92286801 | O59: 4.164941216 | P59: 3.581855138
A60: 37 | B60: 58 | C60: 816 | D60: 39.03728949 | E60: 8.121467453 | F60: 5.075519715 | G60: 6.953146606 | H60: 1.986904455 | I60: 8.3902158 | J60: 6.758375527 | K60: 0.6928944389 | L60: 9.038075305 | M60: 9.260475976 | N60: 4.731336189 | O60: 8.345251688 | P60: 7.993995338
A61: 38 | B61: 80 | C61: 1080 | D61: 35.2544392 | E61: 7.059714764 | F61: 1.394668822 | G61: 0.935689213 | H61: 2.505514102 | I61: 5.08991947 | J61: 8.918922548 | K61: 8.86492171 | L61: 2.685448486 | M61: 8.312580332 | N61: 1.594065754 | O61: 5.224907176 | P61: 8.186605587
A62: 39 | B62: 65 | C62: 900 | D62: 34.9918834 | E62: 2.264761393 | F62: 5.750335075 | G62: 6.922591296 | H62: 0.4322103506 | I62: 1.836474246 | J62: 6.872455947 | K62: 4.720394626 | L62: 1.405832475 | M62: 4.12789505 | N62: 5.00735348 | O62: 2.533039973 | P62: 3.284653143
A63: 40 | B63: 69 | C63: 948 | D63: 34.9918834 | E63: 8.281719647 | F63: 2.884390123 | G63: 1.904727684 | H63: 9.934352946 | I63: 8.584891891 | J63: 2.682850136 | K63: 3.119644366 | L63: 8.948691932 | M63: 3.955529396 | N63: 3.051768115 | O63: 7.238693537 | P63: 5.921923823
A64: 41 | B64: 73 | C64: 996 | D64: 33.38393236 | E64: 7.958501424 | F64: 3.333806056 | G64: 0.09708693748 | H64: 5.554928868 | I64: 7.169371662 | J64: 2.657358605 | K64: 4.740956313 | L64: 7.160214824 | M64: 5.370395691 | N64: 4.268831517 | O64: 7.66518623 | P64: 9.060454296
A65: 42 | B65: 67 | C65: 924 | D65: 36.06738047 | E65: 8.1083881 | F65: 1.654662035 | G65: 0.5622776378 | H65: 8.149450217 | I65: 4.99988656 | J65: 1.050069469 | K65: 8.94197473 | L65: 4.71394384 | M65: 8.791893418 | N65: 2.500808183 | O65: 6.692756611 | P65: 5.421395905
A66: 43 | B66: 71 | C66: 972 | D66: 34.9918834 | E66: 8.154215189 | F66: 1.198409962 | G66: 0.4727992396 | H66: 9.619765523 | I66: 8.38955651 | J66: 0.6323009863 | K66: 4.711357102 | L66: 8.668474767 | M66: 5.533107134 | N66: 4.190419711 | O66: 8.288223273 | P66: 7.776214263
A67: 44 | B67: 63 | C67: 876 | D67: 39.52708829 | E67: 7.674700187 | F67: 3.310834756 | G67: 5.026173568 | H67: 2.718355644 | I67: 5.764176931 | J67: 4.980401497 | K67: 2.401519059 | L67: 5.10449259 | M67: 1.969420045 | N67: 2.897213264 | O67: 7.629987594 | P67: 8.038838475
A68: 45 | B68: 68 | C68: 936 | D68: 34.59539079 | E68: 6.947157603 | F68: 5.216181542 | G68: 1.420349334 | H68: 7.504724189 | I68: 6.56735519 | J68: 1.984422902 | K68: 9.973867987 | L68: 5.506628447 | M68: 9.819018089 | N68: 5.388537608 | O68: 6.592370597 | P68: 7.271802713
A69: 46 | B69: 68 | C69: 936 | D69: 35.47980524 | E69: 3.821484563 | F69: 0.3671468881 | G69: 9.662640271 | H69: 6.915022131 | I69: 3.788504209 | J69: 8.464167648 | K69: 7.33148735 | L69: 1.545532042 | M69: 7.048898855 | N69: 0.7923979576 | O69: 4.392271217 | P69: 4.98202924
A70: 47 | B70: 79 | C70: 1068 | D70: 33.38393236 | E70: 8.215653165 | F70: 2.561802952 | G70: 1.273382243 | H70: 4.372336367 | I70: 6.736801854 | J70: 1.70156295 | K70: 3.959544948 | L70: 5.013089157 | M70: 4.070254988 | N70: 3.568735117 | O70: 7.048678089 | P70: 9.212530755
A71: 48 | B71: 84 | C71: 1128 | D71: 35.02752128 | E71: 5.401918863 | F71: 7.458856905 | G71: 8.006628955 | H71: 2.697788162 | I71: 3.694693517 | J71: 7.97058665 | K71: 6.417882195 | L71: 3.65612974 | M71: 0.4902323421 | N71: 6.803202028 | O71: 5.641398638 | P71: 5.716971388
A72: 49 | B72: 44 | C72: 648 | D72: 36.15691799 | E72: 2.056080756 | F72: 7.361512772 | G72: 9.672778091 | H72: 5.50613115 | I72: 0.5659371058 | J72: 8.965586392 | K72: 0.01386977442 | L72: 0.3802156978 | M72: 6.520316923 | N72: 7.022305961 | O72: 1.412907858 | P72: 3.238941758
A73: 50 | B73: 88 | C73: 1176 | D73: 33.38393236 | E73: 1.824060765 | F73: 5.54865101 | G73: 9.437979204 | H73: 4.971483032 | I73: 3.881529811 | J73: 7.332660137 | K73: 5.049606921 | L73: 4.167993866 | M73: 5.039844733 | N73: 5.378626544 | O73: 2.420486542 | P73: 1.455116349
A74: 51 | B74: 75 | C74: 1020 | D74: 33.38393236 | E74: 7.987971864 | F74: 0.9572741936 | G74: 0.2605205433 | H74: 2.564104619 | I74: 7.278192231 | J74: 0.4101375477 | K74: 2.298565163 | L74: 4.507717259 | M74: 2.322780663 | N74: 1.182996811 | O74: 8.030510203 | P74: 8.062899004
A75: 52 | B75: 54 | C75: 768 | D75: 36.85411891 | E75: 2.979467669 | F75: 7.016678566 | G75: 8.055334857 | H75: 5.285053906 | I75: 1.248418034 | J75: 7.742402779 | K75: 6.26807462 | L75: 0.5582263092 | M75: 6.149067057 | N75: 0.4109092466 | O75: 1.807846207 | P75: 4.632578248
A76: 53 | B76: 88 | C76: 1176 | D76: 35.72965164 | E76: 4.764562369 | F76: 7.177651933 | G76: 8.123092242 | H76: 5.487612189 | I76: 3.00618253 | J76: 7.504813772 | K76: 1.022056034 | L76: 1.095099851 | M76: 0.2096453662 | N76: 6.577102736 | O76: 3.278730099 | P76: 5.157372245
A77: 54 | B77: 58 | C77: 816 | D77: 37.42670607 | E77: 6.384785948 | F77: 3.787062963 | G77: 0.6511583013 | H77: 4.769322513 | I77: 5.504425842 | J77: 2.622181722 | K77: 7.658184774 | L77: 5.029812679 | M77: 4.324372594 | N77: 8.996712662 | O77: 6.237359004 | P77: 7.269533943
A78: 55 | B78: 62 | C78: 864 | D78: 37.61758779 | E78: 3.754272887 | F78: 6.3667491 | G78: 5.761875632 | H78: 1.539296936 | I78: 3.035253042 | J78: 5.925244655 | K78: 0.2555396953 | L78: 2.942732152 | M78: 5.669438174 | N78: 8.581028858 | O78: 3.335176139 | P78: 4.425087552
A79: 56 | B79: 81 | C79: 1092 | D79: 34.59539079 | E79: 5.099088622 | F79: 3.277142475 | G79: 1.901461095 | H79: 6.94025756 | I79: 4.64211294 | J79: 2.329067785 | K79: 9.447261669 | L79: 4.365277379 | M79: 7.64027919 | N79: 3.689464468 | O79: 5.20873489 | P79: 5.266727641
A80: 57 | B80: 79 | C80: 1068 | D80: 33.38393236 | E80: 1.984555991 | F80: 6.286733306 | G80: 9.926650272 | H80: 3.359137224 | I80: 2.483704065 | J80: 9.458272829 | K80: 4.625888022 | L80: 3.171568941 | M80: 3.650080318 | N80: 5.728205565 | O80: 2.249955795 | P80: 1.971456219
A81: 58 | B81: 79 | C81: 1068 | D81: 33.38393236 | E81: 7.065008735 | F81: 1.979412225 | G81: 0.4456102708 | H81: 3.807404107 | I81: 6.633572289 | J81: 1.63572646 | K81: 2.58477409 | L81: 6.007624056 | M81: 3.238203263 | N81: 2.373405517 | O81: 7.039252613 | P81: 7.545619741
A82: 59 | B82: 68 | C82: 936 | D82: 35.18248263 | E82: 5.228204362 | F82: 7.779411039 | G82: 9.202590896 | H82: 1.837362451 | I82: 5.080920852 | J82: 8.45415529 | K82: 0.74992986 | L82: 2.394970254 | M82: 0.9262875281 | N82: 7.627176554 | O82: 5.831506132 | P82: 6.051924057
A83: 60 | B83: 104 | C83: 1368 | D83: 34.39040253 | E83: 4.13724989 | F83: 6.871325815 | G83: 7.674267819 | H83: 6.277594717 | I83: 5.999062482 | J83: 7.356662166 | K83: 0.1746750742 | L83: 6.220871575 | M83: 0.5739545177 | N83: 6.726117037 | O83: 2.772357373 | P83: 1.931943818
A84: 61 | B84: 94 | C84: 1248 | D84: 36.05569958 | E84: 4.916441915 | F84: 2.338711803 | G84: 3.58851037 | H84: 6.205609349 | I84: 5.638900363 | J84: 2.568232022 | K84: 6.507385408 | L84: 6.005530202 | M84: 6.23229841 | N84: 1.241335936 | O84: 5.389450872 | P84: 4.008479496
A85: 62 | B85: 64 | C85: 888 | D85: 37.40595451 | E85: 8.338280695 | F85: 3.685759893 | G85: 1.649823467 | H85: 4.953857486 | I85: 7.327169201 | J85: 2.146485355 | K85: 2.298389319 | L85: 6.682329034 | M85: 2.231436821 | N85: 4.549541868 | O85: 7.437717794 | P85: 9.016856351
A86: 63 | B86: 83 | C86: 1116 | D86: 34.47194869 | E86: 1.693029669 | F86: 9.003336183 | G86: 0.1388016706 | H86: 7.026842293 | I86: 4.332798303 | J86: 0.3869671079 | K86: 7.368101359 | L86: 4.34494649 | M86: 7.19781764 | N86: 8.543961403 | O86: 1.379955971 | P86: 0.3943143042
A87: 64 | B87: 104 | C87: 1368 | D87: 34.9918834 | E87: 6.715777755 | F87: 2.171184687 | G87: 2.053049456 | H87: 8.348125502 | I87: 7.28929921 | J87: 2.05894148 | K87: 3.520195669 | L87: 8.146380987 | M87: 4.006916433 | N87: 3.020211073 | O87: 6.069102155 | P87: 5.744356971
A88: 65 | B88: 79 | C88: 1068 | D88: 34.39040253 | E88: 5.26988696 | F88: 0.8472966248 | G88: 0.01874999624 | H88: 2.328048802 | I88: 4.070609465 | J88: 0.4982374529 | K88: 7.938614077 | L88: 3.592533289 | M88: 6.466094661 | N88: 2.150228151 | O88: 5.32617418 | P88: 6.205476143
A89: 66 | B89: 73 | C89: 996 | D89: 35.80998144 | E89: 6.176791651 | F89: 2.815247317 | G89: 9.105452836 | H89: 7.581763408 | I89: 6.352151766 | J89: 1.311930181 | K89: 8.280978411 | L89: 7.453689625 | M89: 4.795700712 | N89: 3.524010835 | O89: 6.162993902 | P89: 5.964828444
A90: 67 | B90: 58 | C90: 816 | D90: 38.42824005 | E90: 8.081575439 | F90: 9.488625212 | G90: 1.145358461 | H90: 5.532250398 | I90: 8.958875944 | J90: 2.57443918 | K90: 6.501543942 | L90: 9.335499402 | M90: 7.226473241 | N90: 2.956908115 | O90: 7.784668964 | P90: 7.465327145
A91: 68 | B91: 68 | C91: 936 | D91: 35.80998144 | E91: 4.006064367 | F91: 8.086691219 | G91: 0.6292958768 | H91: 1.154806108 | I91: 1.921167473 | J91: 8.519594818 | K91: 1.117654028 | L91: 1.683348055 | M91: 6.027121178 | N91: 7.750724839 | O91: 3.82200708 | P91: 4.242840861
A92: 69 | B92: 82 | C92: 1104 | D92: 34.9918834 | E92: 4.241668729 | F92: 6.194445064 | G92: 9.609462308 | H92: 1.528712505 | I92: 2.902168007 | J92: 9.202166837 | K92: 4.942278737 | L92: 1.633048481 | M92: 4.577280267 | N92: 4.955326548 | O92: 3.361402071 | P92: 4.323094937
A93: 70 | B93: 90 | C93: 1200 | D93: 36.26118245 | E93: 7.16838364 | F93: 8.508831994 | G93: 8.810501463 | H93: 1.953028021 | I93: 2.555344248 | J93: 8.590108572 | K93: 7.499083228 | L93: 2.13111976 | M93: 1.787517038 | N93: 8.226105896 | O93: 2.926846151 | P93: 4.387634562
A94: 71 | B94: 94 | C94: 1248 | D94: 34.59539079 | E94: 6.480558809 | F94: 4.150399925 | G94: 0.003452736756 | H94: 6.812969354 | I94: 5.850448053 | J94: 2.636181484 | K94: 8.456122516 | L94: 5.779200375 | M94: 7.781428471 | N94: 5.725671149 | O94: 6.269747918 | P94: 6.658560529
A95: 72 | B95: 51 | C95: 732 | D95: 38.7512756 | E95: 4.196790844 | F95: 5.415070912 | G95: 0.7673017281 | H95: 3.080788702 | I95: 4.153182563 | J95: 1.082589575 | K95: 9.943124793 | L95: 3.472962228 | M95: 1.750576449 | N95: 5.567780537 | O95: 4.746723384 | P95: 5.230092601
A96: 73 | B96: 100 | C96: 1320 | D96: 34.09663839 | E96: 5.727193801 | F96: 0.3404082591 | G96: 7.728430421 | H96: 4.500473365 | I96: 5.639600215 | J96: 0.3341399623 | K96: 2.421916675 | L96: 4.551513587 | M96: 4.358844552 | N96: 0.7361459086 | O96: 7.357158044 | P96: 7.629005231
A97: 74 | B97: 80 | C97: 1080 | D97: 35.18248263 | E97: 6.255725225 | F97: 2.108532166 | G97: 1.820717608 | H97: 9.143928146 | I97: 8.91932912 | J97: 1.851527259 | K97: 9.405456252 | L97: 9.004416377 | M97: 9.347046163 | N97: 3.732051997 | O97: 5.067093405 | P97: 3.828744469
A98: 75 | B98: 81 | C98: 1092 | D98: 36.64913066 | E98: 4.124214727 | F98: 6.535579461 | G98: 8.385496166 | H98: 2.213784329 | I98: 2.803106137 | J98: 6.57142806 | K98: 6.237907976 | L98: 2.625048521 | M98: 5.906296657 | N98: 0.7325629721 | O98: 4.635154809 | P98: 4.695892747
A99: 76 | B99: 91 | C99: 1212 | D99: 33.38393236 | E99: 2.312208231 | F99: 7.733983374 | G99: 9.157544909 | H99: 6.98819371 | I99: 4.957883736 | J99: 7.734930366 | K99: 7.291278194 | L99: 5.51079457 | M99: 7.241795855 | N99: 7.72358169 | O99: 3.816070159 | P99: 0.7212494705
A100: 77 | B100: 70 | C100: 960 | D100: 35.51891717 | E100: 2.709100976 | F100: 7.381203282 | G100: 8.798717759 | H100: 5.693498542 | I100: 1.711731148 | J100: 8.317076747 | K100: 0.5583218737 | L100: 1.387096284 | M100: 1.22604124 | N100: 6.088934577 | O100: 1.850783849 | P100: 2.810621728
A101: 78 | B101: 109 | C101: 1428 | D101: 33.38393236 | E101: 2.086835619 | F101: 6.419587936 | G101: 7.748278396 | H101: 3.706282072 | I101: 2.825566581 | J101: 6.718592465 | K101: 4.13797637 | L101: 3.028007559 | M101: 3.84399135 | N101: 4.977373031 | O101: 2.732863354 | P101: 2.036357202
A102: 79 | B102: 112 | C102: 1464 | D102: 33.38393236 | E102: 7.435543904 | F102: 3.317208266 | G102: 2.186206186 | H102: 4.959317182 | I102: 7.073571198 | J102: 2.407208287 | K102: 4.01002128 | L102: 5.641060004 | M102: 4.418018848 | N102: 3.590472194 | O102: 7.894620419 | P102: 8.26022205
A103: 80 | B103: 86 | C103: 1152 | D103: 36.73203737 | E103: 5.624670665 | F103: 3.337222855 | G103: 0.663535522 | H103: 7.891350635 | I103: 5.655205242 | J103: 3.173126351 | K103: 8.933834711 | L103: 6.368282556 | M103: 8.894406637 | N103: 9.662627549 | O103: 5.370789986 | P103: 4.944834006
A104: 81 | B104: 99 | C104: 1308 | D104: 34.98981868 | E104: 6.036716874 | F104: 6.658626751 | G104: 8.69893567 | H104: 2.328201971 | I104: 4.314509998 | J104: 7.468227076 | K104: 1.634520875 | L104: 3.822905867 | M104: 6.542570483 | N104: 6.624494583 | O104: 5.867730004 | P104: 6.453783893
A105: 82 | B105: 93 | C105: 1236 | D105: 35.18248263 | E105: 4.317882893 | F105: 8.043203215 | G105: 8.971603449 | H105: 3.749125399 | I105: 4.120312877 | J105: 8.198819488 | K105: 3.456637349 | L105: 3.892720998 | M105: 3.462722894 | N105: 6.41938536 | O105: 4.981498691 | P105: 5.63577811
A106: 83 | B106: 59 | C106: 828 | D106: 36.61569595 | E106: 4.668166349 | F106: 0.2849482309 | G106: 3.09626062 | H106: 6.374568312 | I106: 5.045587163 | J106: 2.559143929 | K106: 9.100565309 | L106: 6.144270043 | M106: 7.953031258 | N106: 9.745634765 | O106: 4.932562282 | P106: 4.270851832
A107: 84 | B107: 76 | C107: 1032 | D107: 35.51891717 | E107: 4.878161693 | F107: 8.535746599 | G107: 9.471213008 | H107: 6.325954252 | I107: 2.219879632 | J107: 8.696438416 | K107: 1.319487446 | L107: 2.080095534 | M107: 1.913793953 | N107: 8.348744477 | O107: 2.320327507 | P107: 5.916044957
A108: 85 | B108: 69 | C108: 948 | D108: 37.17950143 | E108: 2.512882578 | F108: 7.090291356 | G108: 9.707680838 | H108: 4.478342839 | I108: 3.210001155 | J108: 7.821438778 | K108: 6.764673139 | L108: 4.20310657 | M108: 6.923104937 | N108: 4.686863779 | O108: 2.083239244 | P108: 1.503984947
A109: 86 | B109: 65 | C109: 900 | D109: 36.59531817 | E109: 2.822187573 | F109: 1.111076562 | G109: 1.625279042 | H109: 5.276148414 | I109: 3.562931841 | J109: 0.5786455392 | K109: 8.782616967 | L109: 4.154009417 | M109: 5.863975333 | N109: 9.64252759 | O109: 3.386972252 | P109: 2.58611504
A110: 87 | B110: 87 | C110: 1164 | D110: 34.09663839 | E110: 4.336237133 | F110: 1.276814201 | G110: 6.124685823 | H110: 3.055606214 | I110: 4.227914168 | J110: 1.270475843 | K110: 2.133328016 | L110: 3.623760366 | M110: 2.893707369 | N110: 1.632495052 | O110: 4.323935149 | P110: 5.127118695
A111: 88 | B111: 66 | C111: 912 | D111: 38.22789083 | E111: 4.403840004 | F111: 5.913775116 | G111: 2.571957572 | H111: 8.011424151 | I111: 4.496537349 | J111: 1.622482193 | K111: 8.752537179 | L111: 5.665135925 | M111: 6.471824437 | N111: 5.819135198 | O111: 3.299830668 | P111: 2.817159024
A112: 89 | B112: 71 | C112: 972 | D112: 35.87224454 | E112: 3.180941543 | F112: 0.8364095683 | G112: 8.455321023 | H112: 7.562874556 | I112: 3.004435886 | J112: 0.1588503121 | K112: 7.924299397 | L112: 1.325471642 | M112: 6.179520933 | N112: 1.276034201 | O112: 4.55933354 | P112: 5.938825913
A113: 90 | B113: 77 | C113: 1044 | D113: 36.05569958 | E113: 5.936339635 | F113: 8.192425433 | G113: 6.939779964 | H113: 3.072749764 | I113: 4.337648291 | J113: 7.750866652 | K113: 1.802239116 | L113: 3.103672193 | M113: 1.850373964 | N113: 8.716650415 | O113: 5.99017822 | P113: 6.908148748
A114: 91 | B114: 69 | C114: 948 | D114: 34.9918834 | E114: 4.717902648 | F114: 2.11683877 | G114: 1.2041475 | H114: 6.861374372 | I114: 5.785974792 | J114: 1.347897442 | K114: 3.178277413 | L114: 6.69750249 | M114: 3.283570663 | N114: 3.080115 | O114: 5.193945981 | P114: 4.285679291
A115: 92 | B115: 59 | C115: 828 | D115: 35.42589982 | E115: 3.408899159 | F115: 9.730546121 | G115: 1.253385696 | H115: 6.810787314 | I115: 4.528751418 | J115: 9.850584257 | K115: 5.138382911 | L115: 4.963900131 | M115: 5.095328229 | N115: 7.470750109 | O115: 4.181548237 | P115: 2.92872606
A116: 93 | B116: 98 | C116: 1296 | D116: 34.39040253 | E116: 6.147869852 | F116: 3.131386766 | G116: 1.544163558 | H116: 4.22975275 | I116: 4.766985046 | J116: 2.172450885 | K116: 7.751760374 | L116: 4.662811918 | M116: 6.694284137 | N116: 3.663895783 | O116: 6.390540569 | P116: 6.541919936
A117: 94 | B117: 84 | C117: 1128 | D117: 35.18248263 | E117: 4.84225161 | F117: 8.06541866 | G117: 9.536346815 | H117: 1.36809602 | I117: 2.32696683 | J117: 9.443453446 | K117: 0.4850193316 | L117: 1.444843097 | M117: 0.7738948183 | N117: 7.424281864 | O117: 3.663580586 | P117: 6.59651125
A118: 95 | B118: 77 | C118: 1044 | D118: 34.07474745 | E118: 8.45786735 | F118: 3.254765051 | G118: 0.6938122143 | H118: 4.301659806 | I118: 8.419422896 | J118: 1.165414967 | K118: 3.888280339 | L118: 7.049656093 | M118: 4.047470051 | N118: 3.791270993 | O118: 7.369888978 | P118: 8.593338494
A119: 96 | B119: 58 | C119: 816 | D119: 35.86785431 | E119: 4.113971313 | F119: 0.1935809689 | G119: 9.840075587 | H119: 6.916956222 | I119: 6.537527691 | J119: 8.812505788 | K119: 0.8492651669 | L119: 6.576055175 | M119: 3.057634552 | N119: 0.309118911 | O119: 5.062751039 | P119: 3.476674385
A120: 97 | B120: 105 | C120: 1380 | D120: 35.18248263 | E120: 4.129829991 | F120: 7.057977547 | G120: 8.001017195 | H120: 3.277952606 | I120: 4.114345917 | J120: 7.314236159 | K120: 1.400029031 | L120: 3.424668993 | M120: 2.555855881 | N120: 7.022352236 | O120: 5.555301989 | P120: 5.952821953
A121: 98 | B121: 59 | C121: 828 | D121: 35.44219531 | E121: 1.496834898 | F121: 6.607378454 | G121: 7.813800459 | H121: 0.3099824383 | I121: 2.289100429 | J121: 7.383686529 | K121: 5.102533627 | L121: 1.29288576 | M121: 3.042345669 | N121: 6.201044442 | O121: 2.592238991 | P121: 2.698018798
A122: 99 | B122: 66 | C122: 912 | D122: 35.2544392 | E122: 7.509211804 | F122: 9.427429849 | G122: 9.918396624 | H122: 8.097499499 | I122: 7.565149611 | J122: 0.3397998029 | K122: 5.030542835 | L122: 8.043647747 | M122: 5.558654703 | N122: 8.767538276 | O122: 7.256950231 | P122: 7.209026722
A123: 100 | B123: 67 | C123: 924 | D123: 34.98981868 | E123: 8.332885153 | F123: 3.535364698 | G123: 0.4469589885 | H123: 9.344430163 | I123: 8.681912111 | J123: 1.478710134 | K123: 9.782198765 | L123: 8.782930054 | M123: 4.298984567 | N123: 4.078797819 | O123: 7.772026477 | P123: 7.527754446
A124: 101 | B124: 67 | C124: 924 | D124: 34.56704979 | E124: 5.59762189 | F124: 1.569306049 | G124: 0.1240613794 | H124: 4.295531195 | I124: 7.065575859 | J124: 0.2974291945 | K124: 2.750911393 | L124: 5.560281564 | M124: 4.279253376 | N124: 1.773425814 | O124: 6.346321356 | P124: 7.30914107
A125: 102 | B125: 101 | C125: 1332 | D125: 35.85385535 | E125: 4.34779049 | F125: 5.495730099 | G125: 7.118785041 | H125: 2.960549058 | I125: 3.34773312 | J125: 1.264629653 | K125: 2.612632384 | L125: 2.977824641 | M125: 5.222232985 | N125: 5.296051583 | O125: 4.869582142 | P125: 5.042554434
A126: 103 | B126: 66 | C126: 912 | D126: 35.41555355 | E126: 4.2241814 | F126: 1.565674613 | G126: 8.740645866 | H126: 7.391260338 | I126: 2.625103542 | J126: 0.1656427517 | K126: 7.827849087 | L126: 2.159915715 | M126: 7.712994076 | N126: 1.748844308 | O126: 3.311386124 | P126: 5.698346059
A127: 104 | B127: 87 | C127: 1164 | D127: 36.70203461 | E127: 3.506927975 | F127: 8.613686734 | G127: 9.189964103 | H127: 7.966233165 | I127: 7.461769246 | J127: 8.654518083 | K127: 1.888705421 | L127: 2.041191836 | M127: 1.985858667 | N127: 8.223167962 | O127: 4.91310669 | P127: 7.758532806
A128: 105 | B128: 82 | C128: 1104 | D128: 35.86785431 | E128: 4.53270283 | F128: 0.3675595691 | G128: 7.575715146 | H128: 6.251106499 | I128: 5.183379879 | J128: 7.381941106 | K128: 0.8761916697 | L128: 5.74190442 | M128: 3.606462421 | N128: 0.7354910377 | O128: 5.026748855 | P128: 4.040820101
A129: 106 | B129: 75 | C129: 1020 | D129: 35.02752128 | E129: 3.286090807 | F129: 1.942215586 | G129: 0.4975282884 | H129: 5.973114649 | I129: 4.145372274 | J129: 0.9320488058 | K129: 2.831345012 | L129: 5.078735204 | M129: 7.501193288 | N129: 2.402153943 | O129: 4.054064775 | P129: 3.103492733
A130: 107 | B130: 61 | C130: 852 | D130: 36.11833332 | E130: 2.336336746 | F130: 8.00943797 | G130: 9.233327215 | H130: 1.848546682 | I130: 3.324667751 | J130: 8.598424954 | K130: 0.08959587136 | L130: 3.570120973 | M130: 3.687367751 | N130: 7.701961267 | O130: 3.285240391 | P130: 1.966922434
A131: 108 | B131: 73 | C131: 996 | D131: 33.38393236 | E131: 6.902356204 | F131: 3.540192951 | G131: 0.4989817729 | H131: 5.086590702 | I131: 6.547062077 | J131: 3.026491919 | K131: 4.106122549 | L131: 5.521457451 | M131: 4.171964908 | N131: 3.639993389 | O131: 6.719685905 | P131: 7.540522322
A132: 109 | B132: 56 | C132: 792 | D132: 40.29121454 | E132: 8.783721864 | F132: 0.2656414303 | G132: 4.83845896 | H132: 1.277504292 | I132: 9.12474466 | J132: 6.793549385 | K132: 9.889037297 | L132: 9.175953001 | M132: 2.398005944 | N132: 0.8493999145 | O132: 8.872253746 | P132: 8.247654087
A133: 110 | B133: 59 | C133: 828 | D133: 35.41555355 | E133: 4.62790463 | F133: 8.897210511 | G133: 0.3257989752 | H133: 3.434634861 | I133: 7.204895856 | J133: 9.374532321 | K133: 0.4739330307 | L133: 7.99636773 | M133: 2.191953846 | N133: 8.282623913 | O133: 6.578524935 | P133: 4.234014706
A134: 111 | B134: 82 | C134: 1104 | D134: 33.38393236 | E134: 7.5991447 | F134: 2.901451305 | G134: 1.164844281 | H134: 6.256751488 | I134: 7.517758926 | J134: 1.382227012 | K134: 4.199826332 | L134: 6.820832795 | M134: 4.557577264 | N134: 3.931384422 | O134: 7.603043721 | P134: 8.838644076
A135: 112 | B135: 96 | C135: 1272 | D135: 33.38393236 | E135: 1.476647026 | F135: 4.939829554 | G135: 8.491898038 | H135: 3.076448393 | I135: 2.091270452 | J135: 7.083017856 | K135: 4.521564547 | L135: 2.126823107 | M135: 4.24846751 | N135: 4.841643425 | O135: 1.973560412 | P135: 0.406214404
A136: 113 | B136: 85 | C136: 1140 | D136: 34.9918834 | E136: 4.276640578 | F136: 7.003916721 | G136: 7.971372831 | H136: 0.73451386 | I136: 3.44147286 | J136: 7.006846286 | K136: 5.539343501 | L136: 1.907482341 | M136: 5.511162588 | N136: 6.212717718 | O136: 4.451410522 | P136: 5.308810385
A137: 114 | B137: 94 | C137: 1248 | D137: 35.80998144 | E137: 3.957672721 | F137: 0.5043299459 | G137: 6.96012915 | H137: 6.110486316 | I137: 4.186301204 | J137: 0.05345863219 | K137: 6.301104443 | L137: 6.100016255 | M137: 1.280664211 | N137: 0.6939126717 | O137: 4.115962179 | P137: 2.110716259
A138: 115 | B138: 91 | C138: 1212 | D138: 34.98981868 | E138: 1.535869143 | F138: 7.475945523 | G138: 9.213238134 | H138: 0.6748559544 | I138: 0.8235667418 | J138: 8.330536936 | K138: 0.6143970682 | L138: 0.7066800445 | M138: 3.074365967 | N138: 5.900194928 | O138: 0.8318144244 | P138: 1.56252831
A139: 116 | B139: 76 | C139: 1032 | D139: 34.33063888 | E139: 3.937674662 | F139: 7.954857731 | G139: 2.151523336 | H139: 6.234794608 | I139: 4.808529861 | J139: 1.868891456 | K139: 6.882166606 | L139: 5.074214253 | M139: 6.416209417 | N139: 7.924827828 | O139: 3.074505774 | P139: 2.994664395
A140: 117 | B140: 55 | C140: 780 | D140: 38.20711548 | E140: 7.738336764 | F140: 8.25855634 | G140: 9.396680362 | H140: 5.039513891 | I140: 7.951972894 | J140: 1.212564687 | K140: 4.274270423 | L140: 8.056765618 | M140: 4.859413775 | N140: 1.644778744 | O140: 7.538127528 | P140: 6.642395347
A141: 118 | B141: 106 | C141: 1392 | D141: 33.38393236 | E141: 1.422232791 | F141: 6.000450953 | G141: 8.0157033 | H141: 2.834776009 | I141: 1.673244538 | J141: 6.363916135 | K141: 3.797138512 | L141: 2.16680731 | M141: 3.692981241 | N141: 5.715312035 | O141: 1.541489319 | P141: 0.9540403651
A142: 119 | B142: 68 | C142: 936 | D142: 37.56706473 | E142: 6.118749582 | F142: 2.968489002 | G142: 8.92623171 | H142: 3.911957292 | I142: 5.92188434 | J142: 7.03800758 | K142: 2.862238597 | L142: 3.947290117 | M142: 1.730335043 | N142: 3.671854198 | O142: 6.537959216 | P142: 6.639112542
A143: 120 | B143: 90 | C143: 1200 | D143: 33.38393236 | E143: 2.124120649 | F143: 8.454082618 | G143: 9.175617116 | H143: 4.209540315 | I143: 2.246463735 | J143: 8.854526636 | K143: 8.011492341 | L143: 2.272330129 | M143: 6.505671229 | N143: 8.391629054 | O143: 1.206145029 | P143: 0.1330805337
A144: 121 | B144: 65 | C144: 900 | D144: 36.95179492 | E144: 5.333838369 | F144: 9.439606693 | G144: 0.9732573657 | H144: 4.420157831 | I144: 7.677281232 | J144: 3.185078892 | K144: 3.299041475 | L144: 7.831055719 | M144: 3.997709342 | N144: 8.612395115 | O144: 6.253253175 | P144: 7.484617992
A145: 122 | B145: 65 | C145: 900 | D145: 39.2477187 | E145: 7.894407875 | F145: 5.98403436 | G145: 6.351976964 | H145: 1.762080262 | I145: 8.461481941 | J145: 6.158757817 | K145: 1.419252569 | L145: 8.85392993 | M145: 1.618205579 | N145: 4.421315195 | O145: 8.30960184 | P145: 7.535206221
A146: 123 | B146: 75 | C146: 1020 | D146: 36.1631563 | E146: 5.970723523 | F146: 1.901719596 | G146: 1.996280752 | H146: 3.14038035 | I146: 4.062789572 | J146: 1.98407365 | K146: 2.602243756 | L146: 3.968344045 | M146: 2.721432578 | N146: 1.120509245 | O146: 4.566048694 | P146: 7.971291572
A147: 124 | B147: 85 | C147: 1140 | D147: 36.64913066 | E147: 6.886400322 | F147: 5.130804577 | G147: 1.688574649 | H147: 8.538872377 | I147: 7.045076263 | J147: 4.001763351 | K147: 5.299417178 | L147: 8.382803012 | M147: 5.581662521 | N147: 9.576591085 | O147: 6.058378753 | P147: 5.62583564
A148: 125 | B148: 56 | C148: 792 | D148: 36.05569958 | E148: 2.405812072 | F148: 0.7132464821 | G148: 1.76060423 | H148: 7.97197441 | I148: 5.537982781 | J148: 0.9181545276 | K148: 8.278743503 | L148: 5.988933575 | M148: 8.068384987 | N148: 0.03539519971 | O148: 3.991435382 | P148: 1.871867731
A149: 126 | B149: 91 | C149: 1212 | D149: 35.45942746 | E149: 4.692230479 | F149: 8.1601389 | G149: 9.739953571 | H149: 3.1569754 | I149: 6.151208118 | J149: 2.168368063 | K149: 2.248818446 | L149: 6.952652468 | M149: 2.946314033 | N149: 7.608468273 | O149: 5.795426234 | P149: 3.719814758
A150: 127 | B150: 81 | C150: 1092 | D150: 34.45157091 | E150: 5.141878626 | F150: 9.712656417 | G150: 9.76618793 | H150: 7.080446712 | I150: 6.154945497 | J150: 2.923629653 | K150: 7.705960918 | L150: 7.055642486 | M150: 7.128310429 | N150: 8.089854001 | O150: 4.11919655 | P150: 2.940224644
A151: 128 | B151: 66 | C151: 912 | D151: 37.24854681 | E151: 6.71736615 | F151: 2.729768787 | G151: 0.2900495807 | H151: 3.870312867 | I151: 6.327028568 | J151: 1.981763752 | K151: 3.24835633 | L151: 5.970844054 | M151: 8.552512411 | N151: 9.26325429 | O151: 7.440724231 | P151: 7.788330697
A152: 129 | B152: 69 | C152: 948 | D152: 34.98981868 | E152: 6.763838465 | F152: 2.002604878 | G152: 0.3813470202 | H152: 8.242453332 | I152: 7.226467542 | J152: 0.5076025423 | K152: 9.177604656 | L152: 7.422915698 | M152: 3.800328549 | N152: 2.91787134 | O152: 4.909488753 | P152: 4.725391357
A153: 130 | B153: 84 | C153: 1128 | D153: 35.94701116 | E153: 5.213730708 | F153: 1.508949861 | G153: 1.374861931 | H153: 2.604900454 | I153: 6.42360413 | J153: 1.390829363 | K153: 2.209019839 | L153: 8.719060899 | M153: 9.941136048 | N153: 1.567725541 | O153: 5.918463256 | P153: 2.842346547
A154: 131 | B154: 82 | C154: 1104 | D154: 34.39040253 | E154: 4.378732096 | F154: 7.320955313 | G154: 9.860767869 | H154: 5.165665474 | I154: 4.595884379 | J154: 7.34884336 | K154: 2.669947257 | L154: 4.735648271 | M154: 2.982483347 | N154: 6.911136928 | O154: 4.570833758 | P154: 3.362818008
A155: 132 | B155: 73 | C155: 996 | D155: 35.02752128 | E155: 4.348555685 | F155: 2.523888621 | G155: 0.5920394122 | H155: 7.910379816 | I155: 5.3089219 | J155: 1.974613676 | K155: 3.751264358 | L155: 6.221155075 | M155: 8.046350306 | N155: 3.04446007 | O155: 4.598641028 | P155: 3.757599387
A156: 133 | B156: 78 | C156: 1056 | D156: 35.93404962 | E156: 2.938685335 | F156: 0.5885287037 | G156: 0.5706080417 | H156: 7.116952251 | I156: 3.967160568 | J156: 8.472838238 | K156: 2.360656421 | L156: 6.69425855 | M156: 8.302838388 | N156: 0.6039015073 | O156: 2.570549808 | P156: 2.468528981
A157: 134 | B157: 124 | C157: 1608 | D157: 34.39040253 | E157: 3.589878597 | F157: 1.29945779 | G157: 0.2513171968 | H157: 1.517454199 | I157: 2.170307931 | J157: 1.008630676 | K157: 7.059720105 | L157: 1.553652813 | M157: 5.468281528 | N157: 1.400599677 | O157: 3.606656261 | P157: 5.037035579
A158: 135 | B158: 72 | C158: 984 | D158: 38.08876392 | E158: 3.521831376 | F158: 7.515449923 | G158: 0.4858818425 | H158: 1.456757236 | I158: 5.902717693 | J158: 9.473827199 | K158: 6.526080587 | L158: 3.513654645 | M158: 1.313977328 | N158: 6.612096238 | O158: 5.622939917 | P158: 3.675183367
A159: 136 | B159: 70 | C159: 960 | D159: 38.7803398 | E159: 6.437021059 | F159: 4.604545308 | G159: 9.115548149 | H159: 1.644620205 | I159: 5.592991278 | J159: 0.1474275571 | K159: 3.583650017 | L159: 4.730416583 | M159: 0.2028301491 | N159: 4.639510924 | O159: 7.510012464 | P159: 7.639157777
A160: 137 | B160: 95 | C160: 1260 | D160: 34.9918834 | E160: 5.178826131 | F160: 2.355787926 | G160: 1.856980577 | H160: 8.053080681 | I160: 6.429244124 | J160: 2.017801489 | K160: 2.817851119 | L160: 6.493586617 | M160: 3.188355728 | N160: 2.361688311 | O160: 4.548625557 | P160: 3.64073705
A161: 138 | B161: 82 | C161: 1104 | D161: 35.18248263 | E161: 5.251392486 | F161: 4.146566193 | G161: 2.970599682 | H161: 6.25808418 | I161: 5.528584349 | J161: 3.74951551 | K161: 9.671826656 | L161: 6.036065453 | M161: 9.198902572 | N161: 4.190475138 | O161: 4.743151334 | P161: 4.456070947
A162: 139 | B162: 96 | C162: 1272 | D162: 33.38393236 | E162: 0.3876771637 | F162: 6.670836159 | G162: 8.933048413 | H162: 3.893125708 | I162: 1.445979839 | J162: 7.499092896 | K162: 5.956938404 | L162: 1.459576917 | M162: 3.951193004 | N162: 5.994150134 | O162: 0.504183178 | P162: 0.3512746277
A163: 140 | B163: 69 | C163: 948 | D163: 38.10249783 | E163: 1.869097394 | F163: 6.284118342 | G163: 0.4720885431 | H163: 5.738812028 | I163: 4.474860083 | J163: 6.957125322 | K163: 8.695407483 | L163: 4.908596043 | M163: 9.910367276 | N163: 6.017641776 | O163: 2.491775588 | P163: 1.776109616
A164: 141 | B164: 65 | C164: 900 | D164: 38.19514348 | E164: 6.646486312 | F164: 8.661143244 | G164: 9.123139646 | H164: 7.585905784 | I164: 5.38344588 | J164: 8.912604458 | K164: 3.429121116 | L164: 3.761722092 | M164: 3.729737042 | N164: 2.955072935 | O164: 5.807875011 | P164: 6.817605676
A165: 142 | B165: 84 | C165: 1128 | D165: 38.05356473 | E165: 3.969437765 | F165: 6.832131588 | G165: 5.229951744 | H165: 1.011950571 | I165: 1.542741455 | J165: 6.052800713 | K165: 7.466154162 | L165: 1.112225864 | M165: 7.672859352 | N165: 7.070040038 | O165: 1.546045477 | P165: 4.531264946
A166: 143 | B166: 54 | C166: 768 | D166: 38.35963093 | E166: 8.975266136 | F166: 3.293093551 | G166: 1.306544245 | H166: 4.443253874 | I166: 8.91498538 | J166: 3.004458781 | K166: 6.164420036 | L166: 6.551544288 | M166: 6.329231237 | N166: 4.008813418 | O166: 8.255259861 | P166: 7.841522369
A167: 144 | B167: 69 | C167: 948 | D167: 34.39040253 | E167: 3.37328766 | F167: 7.433648294 | G167: 8.566852911 | H167: 5.754974942 | I167: 5.217176665 | J167: 8.007621078 | K167: 0.2893590955 | L167: 5.676023539 | M167: 1.312047082 | N167: 6.644753315 | O167: 5.011303212 | P167: 2.891248057
A168: 145 | B168: 84 | C168: 1128 | D168: 34.59539079 | E168: 4.995560254 | F168: 6.949699408 | G168: 8.07357745 | H168: 2.874413692 | I168: 5.552046314 | J168: 7.45025279 | K168: 1.067633465 | L168: 6.186724598 | M168: 2.132676197 | N168: 6.678222454 | O168: 4.318480591 | P168: 3.876947389
A169: 146 | B169: 63 | C169: 876 | D169: 33.38393236 | E169: 0.9845352353 | F169: 6.536928915 | G169: 8.617319047 | H169: 4.5517484 | I169: 1.948301249 | J169: 7.051136198 | K169: 5.162314692 | L169: 2.808372153 | M169: 4.868955178 | N169: 6.421538459 | O169: 0.832858092 | P169: 0.05891464486
A170: 147 | B170: 75 | C170: 1020 | D170: 33.38393236 | E170: 8.564185601 | F170: 2.636816789 | G170: 0.9099066748 | H170: 5.71388615 | I170: 7.556177188 | J170: 1.295998147 | K170: 4.96254437 | L170: 7.308883316 | M170: 5.32654038 | N170: 4.496208855 | O170: 7.674692359 | P170: 8.740444523
A171: 148 | B171: 113 | C171: 1476 | D171: 33.38393236 | E171: 6.964155574 | F171: 4.166773175 | G171: 2.889741669 | H171: 5.78076011 | I171: 6.126180228 | J171: 3.947966556 | K171: 4.700734936 | L171: 6.012162268 | M171: 5.592492584 | N171: 4.547406519 | O171: 7.858006116 | P171: 8.139869648
A172: 149 | B172: 74 | C172: 1008 | D172: 37.39717384 | E172: 6.825008481 | F172: 9.35828564 | G172: 9.816084005 | H172: 8.457689793 | I172: 8.239708315 | J172: 0.44063669 | K172: 2.433858351 | L172: 8.295538862 | M172: 2.465287724 | N172: 2.035074991 | O172: 4.380925982 | P172: 4.004564576
A173: 150 | B173: 93 | C173: 1236 | D173: 33.38393236 | E173: 4.157276586 | F173: 7.612650449 | G173: 8.482954874 | H173: 5.119585964 | I173: 4.855652829 | J173: 8.352645129 | K173: 7.108119395 | L173: 5.116702539 | M173: 7.054801014 | N173: 7.542345472 | O173: 3.436644841 | P173: 2.803290741
A174: 151 | B174: 93 | C174: 1236 | D174: 33.38393236 | E174: 1.736864903 | F174: 7.667931331 | G174: 9.318537189 | H174: 3.563492284 | I174: 2.571046267 | J174: 8.957499507 | K174: 6.927782591 | L174: 3.185015079 | M174: 4.440587004 | N174: 7.255059047 | O174: 1.67950695 | P174: 1.422545389
A175: 152 | B175: 75 | C175: 1020 | D175: 35.21056529 | E175: 4.038964049 | F175: 8.147713083 | G175: 1.274278522 | H175: 5.648926131 | I175: 4.145609402 | J175: 9.895603776 | K175: 1.742214806 | L175: 4.309415312 | M175: 2.561703641 | N175: 6.462247225 | O175: 3.989227403 | P175: 2.725826085
A176: 153 | B176: 86 | C176: 1152 | D176: 36.35818716 | E176: 5.383438775 | F176: 2.019234792 | G176: 1.396648491 | H176: 2.685985215 | I176: 6.35051166 | J176: 1.739141349 | K176: 3.580549729 | L176: 7.342509962 | M176: 3.589766386 | N176: 2.677355922 | O176: 5.9333099 | P176: 4.77194688
A177: 154 | B177: 58 | C177: 816 | D177: 38.33649831 | E177: 5.829406595 | F177: 9.464866197 | G177: 4.097353196 | H177: 7.94777025 | I177: 6.184376191 | J177: 3.951922029 | K177: 3.46608508 | L177: 7.456153527 | M177: 1.229740341 | N177: 9.115605605 | O177: 5.587569796 | P177: 5.390263093
A178: 155 | B178: 67 | C178: 924 | D178: 35.81080333 | E178: 6.051220727 | F178: 0.7800350517 | G178: 9.20582036 | H178: 8.398107808 | I178: 7.594898041 | J178: 0.1105649567 | K178: 3.227907872 | L178: 8.03395069 | M178: 3.625562893 | N178: 1.21948245 | O178: 7.540049188 | P178: 3.630667625
A179: 156 | B179: 56 | C179: 792 | D179: 38.05150001 | E179: 7.523954406 | F179: 5.772162639 | G179: 7.045516323 | H179: 9.428018922 | I179: 8.314440361 | J179: 6.865642946 | K179: 9.957451569 | L179: 8.919911986 | M179: 1.220003844 | N179: 1.601721327 | O179: 7.597015283 | P179: 7.245224868
A180: 157 | B180: 68 | C180: 936 | D180: 35.94701116 | E180: 3.874568763 | F180: 7.458624426 | G180: 9.874856966 | H180: 4.798369961 | I180: 3.491022574 | J180: 8.624893308 | K180: 6.593351027 | L180: 3.369363822 | M180: 2.610699241 | N180: 6.895927973 | O180: 4.297484753 | P180: 4.471059159
A181: 158 | B181: 80 | C181: 1080 | D181: 33.83424427 | E181: 3.238763518 | F181: 8.175679822 | G181: 9.329506849 | H181: 3.518959459 | I181: 1.752371534 | J181: 9.184096998 | K181: 7.779499352 | L181: 3.250533724 | M181: 6.303745349 | N181: 8.065478527 | O181: 1.514474765 | P181: 1.382196374
A182: 159 | B182: 68 | C182: 936 | D182: 37.55954059 | E182: 1.362587006 | F182: 3.390217792 | G182: 5.586698437 | H182: 3.231635104 | I182: 1.609363424 | J182: 4.831447619 | K182: 7.309660004 | L182: 2.222766437 | M182: 7.777481878 | N182: 3.309894644 | O182: 1.203672526 | P182: 0.4031139585
A183: 160 | B183: 92 | C183: 1224 | D183: 37.50391951 | E183: 5.352393217 | F183: 2.998840345 | G183: 0.8115214444 | H183: 3.861763274 | I183: 4.359157118 | J183: 0.8393894746 | K183: 0.9558975933 | L183: 3.94547398 | M183: 1.783585348 | N183: 3.852388001 | O183: 5.515598996 | P183: 7.373934364
A184: 161 | B184: 81 | C184: 1092 | D184: 35.84747653 | E184: 6.264830694 | F184: 3.205339139 | G184: 2.883904515 | H184: 8.315557549 | I184: 7.71283385 | J184: 8.839747431 | K184: 4.029788769 | L184: 8.071878062 | M184: 4.781029079 | N184: 3.858746452 | O184: 5.729467491 | P184: 5.153439266
A185: 162 | B185: 68 | C185: 936 | D185: 34.78745349 | E185: 6.404567578 | F185: 1.470940635 | G185: 9.54539192 | H185: 3.362767382 | I185: 6.1731849 | J185: 0.9812316149 | K185: 2.484113029 | L185: 3.720572562 | M185: 2.817864416 | N185: 1.959162092 | O185: 4.880888009 | P185: 6.772904751
A186: 163 | B186: 80 | C186: 1080 | D186: 37.20504169 | E186: 6.644868272 | F186: 0.7846743168 | G186: 7.843975208 | H186: 5.729112925 | I186: 6.714396175 | J186: 7.829919168 | K186: 2.037279104 | L186: 7.222889758 | M186: 2.603158697 | N186: 7.826165171 | O186: 6.545501634 | P186: 6.117358695
A187: 164 | B187: 73 | C187: 996 | D187: 35.43325633 | E187: 5.810815151 | F187: 3.256508484 | G187: 1.924437484 | H187: 9.494300867 | I187: 5.070907553 | J187: 2.966665147 | K187: 7.335602988 | L187: 4.365536828 | M187: 9.625758059 | N187: 3.627379134 | O187: 5.563588703 | P187: 6.762087027
A188: 165 | B188: 67 | C188: 924 | D188: 36.50601149 | E188: 2.289651443 | F188: 7.188178061 | G188: 6.514484898 | H188: 1.873370691 | I188: 4.277387567 | J188: 6.601452172 | K188: 1.285958241 | L188: 2.193777837 | M188: 1.293798513 | N188: 9.352975281 | O188: 4.916855133 | P188: 5.309050281
A189: 166 | B189: 58 | C189: 816 | D189: 38.85084423 | E189: 2.860288122 | F189: 8.622827723 | G189: 4.872612721 | H189: 1.20081401 | I189: 1.840777446 | J189: 6.27113081 | K189: 1.125119643 | L189: 1.485198659 | M189: 3.448169311 | N189: 9.890725303 | O189: 1.904387292 | P189: 1.919922175
A190: 167 | B190: 76 | C190: 1032 | D190: 35.91611845 | E190: 5.548396794 | F190: 9.353429919 | G190: 9.564684476 | H190: 1.298436076 | I190: 8.456052277 | J190: 0.4948740608 | K190: 0.9742084659 | L190: 8.801647286 | M190: 2.757489607 | N190: 9.116904428 | O190: 6.043810767 | P190: 3.345325089
A191: 168 | B191: 70 | C191: 960 | D191: 34.09663839 | E191: 3.509738857 | F191: 8.061115703 | G191: 0.9139268558 | H191: 5.338604736 | I191: 3.653472301 | J191: 9.543366427 | K191: 6.08602681 | L191: 5.200756668 | M191: 5.578551844 | N191: 7.238883759 | O191: 3.478809784 | P191: 3.258948023
A192: 169 | B192: 53 | C192: 756 | D192: 37.22638771 | E192: 5.247723132 | F192: 9.987478179 | G192: 0.06350150461 | H192: 8.953444163 | I192: 3.006346933 | J192: 1.104993664 | K192: 8.267227476 | L192: 1.560723195 | M192: 8.12957522 | N192: 9.472882598 | O192: 4.471520764 | P192: 7.741740508
A193: 170 | B193: 66 | C193: 912 | D193: 38.70536138 | E193: 1.068996825 | F193: 6.288811385 | G193: 9.37542599 | H193: 7.176733021 | I193: 2.108775826 | J193: 8.071302892 | K193: 7.957838995 | L193: 3.773526016 | M193: 7.796612444 | N193: 5.081395364 | O193: 3.017443938 | P193: 0.9520361876
A194: 171 | B194: 82 | C194: 1104 | D194: 36.02937064 | E194: 4.787557513 | F194: 7.846167938 | G194: 4.418041067 | H194: 6.839686441 | I194: 5.723864102 | J194: 4.04374316 | K194: 7.740223029 | L194: 5.747763757 | M194: 7.695830516 | N194: 9.93946708 | O194: 5.450080264 | P194: 4.593512693
A195: 172 | B195: 119 | C195: 1548 | D195: 34.39040253 | E195: 7.459232546 | F195: 3.727134866 | G195: 3.010234483 | H195: 5.050075367 | I195: 7.454709024 | J195: 3.688745226 | K195: 8.363765392 | L195: 7.307326851 | M195: 8.120058886 | N195: 4.296256873 | O195: 7.547829774 | P195: 7.691966666
A196: 173 | B196: 72 | C196: 984 | D196: 37.56621158 | E196: 2.802233859 | F196: 6.826536433 | G196: 1.304812727 | H196: 5.734878229 | I196: 4.058246374 | J196: 0.2808759701 | K196: 8.401625724 | L196: 4.890294724 | M196: 8.00736109 | N196: 5.836282513 | O196: 2.941127504 | P196: 2.531370267
A197: 174 | B197: 81 | C197: 1092 | D197: 34.59539079 | E197: 5.765801605 | F197: 3.243284118 | G197: 1.775608587 | H197: 8.479311729 | I197: 4.5361463 | J197: 1.93721293 | K197: 8.984295358 | L197: 4.132971293 | M197: 8.574433909 | N197: 4.064746679 | O197: 7.07612273 | P197: 7.854300973
A198: 175 | B198: 81 | C198: 1092 | D198: 34.33063888 | E198: 5.480006895 | F198: 0.9743034686 | G198: 6.742864341 | H198: 3.113262851 | I198: 3.601033608 | J198: 7.281054274 | K198: 1.664772431 | L198: 3.283854315 | M198: 2.331677808 | N198: 1.191549616 | O198: 3.606270912 | P198: 6.073681294
A199: 176 | B199: 66 | C199: 912 | D199: 36.05569958 | E199: 2.876116438 | F199: 8.716464473 | G199: 7.248415998 | H199: 1.784991877 | I199: 2.827806323 | J199: 8.218336216 | K199: 0.6160491953 | L199: 1.876205114 | M199: 0.7347482509 | N199: 9.244053344 | O199: 3.644158485 | P199: 3.923353175
A200: 177 | B200: 96 | C200: 1272 | D200: 34.09663839 | E200: 3.890677608 | F200: 6.318800604 | G200: 2.424107041 | H200: 4.915527512 | I200: 4.381938579 | J200: 9.362852207 | K200: 5.608048718 | L200: 4.8894509 | M200: 5.453625597 | N200: 5.87515362 | O200: 3.819507781 | P200: 3.568187586
... 323 more rows

Sheet DataIN
G1: Trial Solution | P1: Best of N
B2: CITY | C2: x | D2: y | H2: city | I2: x-location | J2: y-location
B3: Home | C3: 1.5 | D3: 3.7 | F3: visit order | G3: key | H3: Home | I3: =C3 -> 1.5 | J3: =D3 -> 3.7 | O3: 0 | P3: Home | Q3: =C3 -> 1.5 | R3: =D3 -> 3.7
B4: 1 | C4: 8.5 | D4: 5.5 | F4: 1 | G4: 1.033665263 | H4: =Main!L3 -> 6 | I4: 1 | J4: 3.4 | O4: 1 | P4: 3 | Q4: 0.9 | R4: 3.7
B5: 2 | C5: 0.1 | D5: 1.7 | F5: 2 | G5: 2.265906431 | H5: =Main!L4 -> 2 | I5: 0.1 | J5: 1.7 | O5: 2 | P5: 6 | Q5: 1 | R5: 3.4
B6: 3 | C6: 0.9 | D6: 3.7 | F6: 3 | G6: 2.477876119 | H6: =Main!L5 -> 10 | I6: 2 | J6: 0.6 | O6: 3 | P6: 2 | Q6: 0.1 | R6: 1.7
B7: 4 | C7: 4.5 | D7: 2.3 | F7: 4 | G7: 3.724156558 | H7: =Main!L6 -> 7 | I7: 3.6 | J7: 2.7 | O7: 4 | P7: 10 | Q7: 2 | R7: 0.6
B8: 5 | C8: 9.2 | D8: 5.1 | F8: 5 | G8: 4.008610674 | H8: =Main!L7 -> 9 | I8: 3.8 | J8: 2.9 | O8: 5 | P8: 7 | Q8: 3.6 | R8: 2.7
B9: 6 | C9: 1 | D9: 3.4 | F9: 6 | G9: 4.453218926 | H9: =Main!L8 -> 4 | I9: 4.5 | J9: 2.3 | O9: 6 | P9: 9 | Q9: 3.8 | R9: 2.9
B10: 7 | C10: 3.6 | D10: 2.7 | F10: 7 | G10: 4.567008422 | H10: =Main!L9 -> 8 | I10: 10 | J10: 0 | O10: 7 | P10: 4 | Q10: 4.5 | R10: 2.3
B11: 8 | C11: 10 | D11: 0 | F11: 8 | G11: 4.723492942 | H11: =Main!L10 -> 5 | I11: 9.2 | J11: 5.1 | O11: 8 | P11: 8 | Q11: 10 | R11: 0
B12: 9 | C12: 3.8 | D12: 2.9 | F12: 9 | G12: 6.533571102 | H12: =Main!L11 -> 11 | I12: 9.3 | J12: 5.9 | O12: 9 | P12: 5 | Q12: 9.2 | R12: 5.1
B13: 10 | C13: 2 | D13: 0.6 | F13: 10 | G13: 8.617348966 | H13: =Main!L12 -> 1 | I13: 8.5 | J13: 5.5 | O13: 10 | P13: 1 | Q13: 8.5 | R13: 5.5
B14: 11 | C14: 9.3 | D14: 5.9 | F14: 11 | G14: 9.305867257 | H14: =Main!L13 -> 12 | I14: 7.2 | J14: 9.1 | O14: 11 | P14: 11 | Q14: 9.3 | R14: 5.9
B15: 12 | C15: 7.2 | D15: 9.1 | F15: 12 | G15: 9.918428595 | H15: =Main!L14 -> 3 | I15: 0.9 | J15: 3.7 | O15: 12 | P15: 12 | Q15: 7.2 | R15: 9.1
H16: Home | I16: =C3 -> 1.5 | J16: =D3 -> 3.7 | O16: 13 | P16: Home | Q16: =C3 -> 1.5 | R16: =D3 -> 3.7
C17: enter locations here | V17: Nearest neighbor path sum = 47.5793
P18: 0 | Q18: 9 | R18: 10 | S18: 2 | T18: 1 | U18: 3 | V18: 11 | W18: 5 | X18: 7 | Y18: 12 | Z18: 4 | AA18: 6 | AB18: 8
P19: H | Q19: 1 | R19: 2 | S19: 3 | T19: 4 | U19: 5 | V19: 6 | W19: 7 | X19: 8 | Y19: 9 | Z19: 10 | AA19: 11 | AB19: 12
A20: 0 | B20: 7.2277244 | C20: 2.441311123 | D20: 0.6 | E20: 3.310589071 | F20: 7.826237921 | G20: 0.5830951895 | H20: 2.32594067 | I20: 9.270382948 | J20: 2.435159132 | K20: 3.140063694 | L20: 8.104319836 | M20: 7.851751397 | O20: H | Y20: 7.071067812
A21: 7.2277244 | B21: 0 | C21: 9.219544457 | D21: 7.810249676 | E21: 5.12249939 | F21: 0.8062257748 | G21: 7.788452991 | H21: 5.643580424 | I21: 5.700877125 | J21: 5.371219601 | K21: 8.14002457 | L21: 0.894427191 | M21: 3.827531842 | O21: 1 | AB21: 3
A22: 2.441311123 | B22: 9.219544457 | C22: 0 | D22: 2.154065923 | E22: 4.440720662 | F22: 9.714422268 | G22: 1.923538406 | H22: 3.640054945 | I22: 10.0448992 | J22: 3.889730068 | K22: 2.19544984 | L22: 10.1133575 | M22: 10.25524256 | O22: 2 | Q22: 2.236067977
A23: 0.6 | B23: 7.810249676 | C23: 2.154065923 | D23: 0 | E23: 3.862641583 | F23: 8.417244205 | G23: 0.316227766 | H23: 2.87923601 | I23: 9.823441352 | J23: 3.008321791 | K23: 3.289376841 | L23: 8.683317338 | M23: 8.297590012 | O23: 3 | T23: 2
A24: 3.310589071 | B24: 5.12249939 | C24: 4.440720662 | D24: 3.862641583 | E24: 0 | F24: 5.470831747 | G24: 3.668787266 | H24: 0.9848857802 | I24: 5.961543424 | J24: 0.9219544457 | K24: 3.023243292 | L24: 6 | M24: 7.31641989 | O24: 4 | P24: 1.414213562
A25: 7.826237921 | B25: 0.8062257748 | C25: 9.714422268 | D25: 8.417244205 | E25: 5.470831747 | F25: 0 | G25: 8.374365648 | H25: 6.092618485 | I25: 5.1623638 | J25: 5.830951895 | K25: 8.490583019 | L25: 0.8062257748 | M25: 4.472135955 | O25: 5 | S25: 3.605551275
A26: 0.5830951895 | B26: 7.788452991 | C26: 1.923538406 | D26: 0.316227766 | E26: 3.668787266 | F26: 8.374365648 | G26: 0 | H26: 2.692582404 | I26: 9.620810777 | J26: 2.844292531 | K26: 2.973213749 | L26: 8.668333173 | M26: 8.421995013 | O26: 6 | R26: 2.236067977
A27: 2.32594067 | B27: 5.643580424 | C27: 3.640054945 | D27: 2.87923601 | E27: 0.9848857802 | F27: 6.092618485 | G27: 2.692582404 | H27: 0 | I27: 6.946221995 | J27: 0.2828427125 | K27: 2.640075756 | L27: 6.536818798 | M27: 7.3430239 | O27: 7 | Z27: 2.236067977
A28: 9.270382948 | B28: 5.700877125 | C28: 10.0448992 | D28: 9.823441352 | E28: 5.961543424 | F28: 5.1623638 | G28: 9.620810777 | H28: 6.946221995 | I28: 0 | J28: 6.844705983 | K28: 8.022468448 | L28: 5.941380311 | M28: 9.521029356 | O28: 8 | AA28: 8.246211251
A29: 2.435159132 | B29: 5.371219601 | C29: 3.889730068 | D29: 3.008321791 | E29: 0.9219544457 | F29: 5.830951895 | G29: 2.844292531 | H29: 0.2828427125 | I29: 6.844705983 | J29: 0 | K29: 2.920616373 | L29: 6.264982043 | M29: 7.071067812 | O29: 9 | V29: 9.055385138
A30: 3.140063694 | B30: 8.14002457 | C30: 2.19544984 | D30: 3.289376841 | E30: 3.023243292 | F30: 8.490583019 | G30: 2.973213749 | H30: 2.640075756 | I30: 8.022468448 | J30: 2.920616373 | K30: 0 | L30: 9.021086409 | M30: 9.964436763 | O30: 10 | U30: 2.828427125
A31: 8.104319836 | B31: 0.894427191 | C31: 10.1133575 | D31: 8.683317338 | E31: 6 | F31: 0.8062257748 | G31: 8.668333173 | H31: 6.536818798 | I31: 5.941380311 | J31: 6.264982043 | K31: 9.021086409 | L31: 0 | M31: 3.827531842 | O31: 11 | W31: 2.236067977
A32: 7.851751397 | B32: 3.827531842 | C32: 10.25524256 | D32: 8.297590012 | E32: 7.31641989 | F32: 4.472135955 | G32: 8.421995013 | H32: 7.3430239 | I32: 9.521029356 | J32: 7.071067812 | K32: 9.964436763 | L32: 3.827531842 | M32: 0 | O32: 12 | X32: 1.414213562

Sheet DataRESULT
A1: This sheet shows results | K1: IterationMax
K2: =Main!D7 -> 1000
A3: Columns 9 and after show the final results at optimizer stopping.
B4: If iterations > iteration Max, optimizer did not meet convergence criterion | K4: Average | L4: Average
K5: =AVERAGE(K9:K509) -> 76.566 | L5: =AVERAGE(L9:L509) -> 1038.792
AP6: forward A | AQ6: forward B | AR6: backward A | AS6: Backward B
I7: CDF | J7: Trial# | K7: Iterations | L7: NOFE | M7: Sum of | N7: DV1 | O7: DV2 | P7: DV3 | Q7: DV4 | R7: DV5 | S7: DV6 | T7: DV7 | U7: DV8 | V7: DV9 | W7: DV10 | X7: DV11 | Y7: DV12 | AA7: DV1 | AB7: DV2 | AC7: DV3 | AD7: DV4 | AE7: DV5 | AF7: DV6 | AG7: DV7 | AH7: DV8 | AI7: DV9 | AJ7: DV10 | AK7: DV11 | AL7: DV12 | AO7: order | AP7: city
M8: distances | N8: 1 | O8: 2 | P8: 3 | Q8: 4 | R8: 5 | S8: 6 | T8: 7 | U8: 8 | V8: 9 | W8: 10 | X8: 11 | Y8: 12 | AA8: 1 | AB8: 2 | AC8: 3 | AD8: 4 | AE8: 5 | AF8: 6 | AG8: 7 | AH8: 8 | AI8: 9 | AJ8: 10 | AK8: 11 | AL8: 12 | AO8: 1 | AP8: 3 | AQ8: 3 | AR8: 12 | AS8: 12
I9: 0.002 | J9: 28 | K9: 81 | L9: 1092 | M9: 33.38393236 | N9: 2.084208088 | O9: 7.016229636 | P9: 9.440610165 | Q9: 2.895768063 | R9: 2.244645315 | S9: 7.279173364 | T9: 5.155434391 | U9: 2.649646014 | V9: 4.529133146 | W9: 6.151913334 | X9: 1.997925378 | Y9: 1.891335574 | AA9: =RANK(N9,$N9:$Y9) -> 10 | AB9: =RANK(O9,$N9:$Y9) -> 3 | AC9: 1 | AD9: 7 | AE9: 9 | AF9: 2 | AG9: 5 | AH9: 8 | AI9: 6 | AJ9: 4 | AK9: 11 | AL9: 12 | AO9: 2 | AP9: 6 | AQ9: 6 | AR9: 11 | AS9: 1
I10: 0.004 | J10: 50 | K10: 88 | L10: 1176 | M10: 33.38393236 | N10: 1.824060765 | O10: 5.54865101 | P10: 9.437979204 | Q10: 4.971483032 | R10: 3.881529811 | S10: 7.332660137 | T10: 5.049606921 | U10: 4.167993866 | V10: 5.039844733 | W10: 5.378626544 | X10: 2.420486542 | Y10: 1.455116349 | AA10: =RANK(N10,$N10:$Y10) -> 11 | AB10: 3 | AC10: 1 | AD10: 7 | AE10: 9 | AF10: 2 | AG10: 5 | AH10: 8 | AI10: 6 | AJ10: 4 | AK10: 10 | AL10: 12 | AO10: 3 | AP10: 2 | AQ10: 2 | AR10: 1 | AS10: 11
I11: 0.006 | J11: 57 | K11: 79 | L11: 1068 | M11: 33.38393236 | N11: 1.984555991 | O11: 6.286733306 | P11: 9.926650272 | Q11: 3.359137224 | R11: 2.483704065 | S11: 9.458272829 | T11: 4.625888022 | U11: 3.171568941 | V11: 3.650080318 | W11: 5.728205565 | X11: 2.249955795 | Y11: 1.971456219 | AA11: 11 | AB11: 3 | AC11: 1 | AD11: 7 | AE11: 9 | AF11: 2 | AG11: 5 | AH11: 8 | AI11: 6 | AJ11: 4 | AK11: 10 | AL11: 12 | AO11: 4 | AP11: 10 | AQ11: 10 | AR11: 5 | AS11: 5
I12: 0.008 | J12: 76 | K12: 91 | L12: 1212 | M12: 33.38393236 | N12: 2.312208231 | O12: 7.733983374 | P12: 9.157544909 | Q12: 6.98819371 | R12: 4.957883736 | S12: 7.734930366 | T12: 7.291278194 | U12: 5.51079457 | V12: 7.241795855 | W12: 7.72358169 | X12: 3.816070159 | Y12: 0.7212494705 | AA12: 11 | AB12: 3 | AC12: 1 | AD12: 7 | AE12: 9 | AF12: 2 | AG12: 5 | AH12: 8 | AI12: 6 | AJ12: 4 | AK12: 10 | AL12: 12 | AO12: 5 | AP12: 7 | AQ12: 7 | AR12: 8 | AS12: 8
I13: 0.01 | J13: 78 | K13: 109 | L13: 1428 | M13: 33.38393236 | N13: 2.086835619 | O13: 6.419587936 | P13: 7.748278396 | Q13: 3.706282072 | R13: 2.825566581 | S13: 6.718592465 | T13: 4.13797637 | U13: 3.028007559 | V13: 3.84399135 | W13: 4.977373031 | X13: 2.732863354 | Y13: 2.036357202 | AA13: 11 | AB13: 3 | AC13: 1 | AD13: 7 | AE13: 9 | AF13: 2 | AG13: 5 | AH13: 8 | AI13: 6 | AJ13: 4 | AK13: 10 | AL13: 12 | AO13: 6 | AP13: 9 | AQ13: 9 | AR13: 4 | AS13: 4
I14: 0.012 | J14: 112 | K14: 96 | L14: 1272 | M14: 33.38393236 | N14: 1.476647026 | O14: 4.939829554 | P14: 8.491898038 | Q14: 3.076448393 | R14: 2.091270452 | S14: 7.083017856 | T14: 4.521564547 | U14: 2.126823107 | V14: 4.24846751 | W14: 4.841643425 | X14: 1.973560412 | Y14: 0.406214404 | AA14: 11 | AB14: 3 | AC14: 1 | AD14: 7 | AE14: 9 | AF14: 2 | AG14: 5 | AH14: 8 | AI14: 6 | AJ14: 4 | AK14: 10 | AL14: 12 | AO14: 7 | AP14: 4 | AQ14: 4 | AR14: 9 | AS14: 9
I15: 0.014 | J15: 118 | K15: 106 | L15: 1392 | M15: 33.38393236 | N15: 1.422232791 | O15: 6.000450953 | P15: 8.0157033 | Q15: 2.834776009 | R15: 1.673244538 | S15: 6.363916135 | T15: 3.797138512 | U15: 2.16680731 | V15: 3.692981241 | W15: 5.715312035 | X15: 1.541489319 | Y15: 0.9540403651 | AA15: 11 | AB15: 3 | AC15: 1 | AD15: 7 | AE15: 9 | AF15: 2 | AG15: 5 | AH15: 8 | AI15: 6 | AJ15: 4 | AK15: 10 | AL15: 12 | AO15: 8 | AP15: 8 | AQ15: 8 | AR15: 7 | AS15: 7
I16: 0.016 | J16: 120 | K16: 90 | L16: 1200 | M16: 33.38393236 | N16: 2.124120649 | O16: 8.454082618 | P16: 9.175617116 | Q16: 4.209540315 | R16: 2.246463735 | S16: 8.854526636 | T16: 8.011492341 | U16: 2.272330129 | V16: 6.505671229 | W16: 8.391629054 | X16: 1.206145029 | Y16: 0.1330805337 | AA16: 10 | AB16: 3 | AC16: 1 | AD16: 7 | AE16: 9 | AF16: 2 | AG16: 5 | AH16: 8 | AI16: 6 | AJ16: 4 | AK16: 11 | AL16: 12 | AO16: 9 | AP16: 5 | AQ16: 5 | AR16: 10 | AS16: 10
I17: 0.018 | J17: 139 | K17: 96 | L17: 1272 | M17: 33.38393236 | N17: 0.3876771637 | O17: 6.670836159 | P17: 8.933048413 | Q17: 3.893125708 | R17: 1.445979839 | S17: 7.499092896 | T17: 5.956938404 | U17: 1.459576917 | V17: 3.951193004 | W17: 5.994150134 | X17: 0.504183178 | Y17: 0.3512746277 | AA17: 11 | AB17: 3 | AC17: 1 | AD17: 7 | AE17: 9 | AF17: 2 | AG17: 5 | AH17: 8 | AI17: 6 | AJ17: 4 | AK17: 10 | AL17: 12 | AO17: 10 | AP17: 1 | AQ17: 11 | AR17: 2 | AS17: 2
I18: 0.02 | J18: 146 | K18: 63 | L18: 876 | M18: 33.38393236 | N18: 0.9845352353 | O18: 6.536928915 | P18: 8.617319047 | Q18: 4.5517484 | R18: 1.948301249 | S18: 7.051136198 | T18: 5.162314692 | U18: 2.808372153 | V18: 4.868955178 | W18: 6.421538459 | X18: 0.832858092 | Y18: 0.05891464486 | AA18: 10 | AB18: 3 | AC18: 1 | AD18: 7 | AE18: 9 | AF18: 2 | AG18: 5 | AH18: 8 | AI18: 6 | AJ18: 4 | AK18: 11 | AL18: 12 | AO18: 11 | AP18: 11 | AQ18: 1 | AR18: 6 | AS18: 6
I19: 0.022 | J19: 150 | K19: 93 | L19: 1236 | M19: 33.38393236 | N19: 4.157276586 | O19: 7.612650449 | P19: 8.482954874 | Q19: 5.119585964 | R19: 4.855652829 | S19: 8.352645129 | T19: 7.108119395 | U19: 5.116702539 | V19: 7.054801014 | W19: 7.542345472 | X19: 3.436644841 | Y19: 2.803290741 | AA19: 10 | AB19: 3 | AC19: 1 | AD19: 7 | AE19: 9 | AF19: 2 | AG19: 5 | AH19: 8 | AI19: 6 | AJ19: 4 | AK19: 11 | AL19: 12 | AO19: 12 | AP19: 12 | AQ19: 12 | AR19: 3 | AS19: 3
I20: 0.024 | J20: 151 | K20: 93 | L20: 1236 | M20: 33.38393236 | N20: 1.736864903 | O20: 7.667931331 | P20: 9.318537189 | Q20: 3.563492284 | R20: 2.571046267 | S20: 8.957499507 | T20: 6.927782591 | U20: 3.185015079 | V20: 4.440587004 | W20: 7.255059047 | X20: 1.67950695 | Y20: 1.422545389 | AA20: =RANK(N20,$N20:$Y20) -> 10 | AB20: =RANK(O20,$N20:$Y20) -> 3 | AC20: =RANK(P20,$N20:$Y20) -> 1 | AD20: =RANK(Q20,$N20:$Y20) -> 7 | AE20: =RANK(R20,$N20:$Y20) -> 9 | AF20: =RANK(S20,$N20:$Y20) -> 2 | AG20: =RANK(T20,$N20:$Y20) -> 5 | AH20: =RANK(U20,$N20:$Y20) -> 8 | AI20: =RANK(V20,$N20:$Y20) -> 6 | AJ20: =RANK(W20,$N20:$Y20) -> 4 | AK20: =RANK(X20,$N20:$Y20) -> 11 | AL20: =RANK(Y20,$N20:$Y20) -> 12
I21: 0.026 | J21: 178 | K21: 96 | L21: 1272 | M21: 33.38393236 | N21: 2.209794598 | O21: 5.483899555 | P21: 7.540791369 | Q21: 2.930790253 | R21: 2.408559391 | S21: 7.250948537 | T21: 3.229946371 | U21: 2.906896221 | V21: 3.027614083 | W21: 4.180510024 | X21: 2.288317755 | Y21: 1.80475263 | AA21: 11 | AB21: 3 | AC21: 1 | AD21: 7 | AE21: 9 | AF21: 2 | AG21: 5 | AH21: 8 | AI21: 6 | AJ21: 4 | AK21: 10 | AL21: 12
I22: 0.028 | J22: 188 | K22: 91 | L22: 1212 | M22: 33.38393236 | N22: 1.379280938 | O22: 9.517308865 | P22: 9.932873128 | Q22: 4.569741948 | R22: 1.927703731 | S22: 9.644914172 | T22: 7.05168296 | U22: 2.286555286 | V22: 6.161663899 | W22: 8.564324769 | X22: 1.494808699 | Y22: 1.290154168 | AA22: 11 | AB22: 3 | AC22: 1 | AD22: 7 | AE22: 9 | AF22: 2 | AG22: 5 | AH22: 8 | AI22: 6 | AJ22: 4 | AK22: 10 | AL22: 12
I23: 0.03 | J23: 210 | K23: 102 | L23: 1344 | M23: 33.38393236 | N23: 3.94161983 | O23: 7.487058908 | P23: 8.070393599 | Q23: 5.574237902 | R23: 4.351627226 | S23: 8.045795019 | T23: 6.321739096 | U23: 5.211185399 | V23: 6.01447353 | W23: 7.444288522 | X23: 4.260805639 | Y23: 3.05920048 | AA23: 11 | AB23: 3 | AC23: 1 | AD23: 7 | AE23: 9 | AF23: 2 | AG23: 5 | AH23: 8 | AI23: 6 | AJ23: 4 | AK23: 10 | AL23: 12
I24: 0.032 | J24: 213 | K24: 79 | L24: 1068 | M24: 33.38393236 | N24: 4.912653632 | O24: 9.064217549 | P24: 9.525123892 | Q24: 5.503405958 | R24: 4.971124707 | S24: 9.521896607 | T24: 6.079282055 | U24: 5.068970074 | V24: 5.580042847 | W24: 8.922494358 | X24: 3.121967324 | Y24: 2.32101534 | AA24: 10 | AB24: 3 | AC24: 1 | AD24: 7 | AE24: 9 | AF24: 2 | AG24: 5 | AH24: 8 | AI24: 6 | AJ24: 4 | AK24: 11 | AL24: 12
I25: 0.034 | J25: 218 | K25: 69 | L25: 948 | M25: 33.38393236 | N25: 1.898506336 | O25: 8.621999212 | P25: 9.549586487 | Q25: 4.546556562 | R25: 4.164941297 | S25: 8.792482854 | T25: 5.520030452 | U25: 4.269861777 | V25: 5.473050832 | W25: 7.005915532 | X25: 3.607765701 | Y25: 1.755362889 | AA25: 11 | AB25: 3 | AC25: 1 | AD25: 7 | AE25: 9 | AF25: 2 | AG25: 5 | AH25: 8 | AI25: 6 | AJ25: 4 | AK25: 10 | AL25: 12
I26: 0.036 | J26: 229 | K26: 77 | L26: 1044 | M26: 33.38393236 | N26: 1.783622751 | O26: 5.894022488 | P26: 9.663952405 | Q26: 2.829317272 | R26: 1.840493789 | S26: 8.048331277 | T26: 4.185424189 | U26: 2.599750012 | V26: 3.316526718 | W26: 5.712662078 | X26: 1.467882896 | Y26: 0.6245238742 | AA26: 10 | AB26: 3 | AC26: 1 | AD26: 7 | AE26: 9 | AF26: 2 | AG26: 5 | AH26: 8 | AI26: 6 | AJ26: 4 | AK26: 11 | AL26: 12
I27: 0.038 | J27: 244 | K27: 93 | L27: 1236 | M27: 33.38393236 | N27: 0.9758176165 | O27: 7.478303192 | P27: 9.956188753 | Q27: 2.588458867 | R27: 1.329627797 | S27: 7.950949417 | T27: 7.142066122 | U27: 1.610789953 | V27: 3.515565584 | W27: 7.436774375 | X27: 0.7534751233 | Y27: 0.4696821501 | AA27: 10 | AB27: 3 | AC27: 1 | AD27: 7 | AE27: 9 | AF27: 2 | AG27: 5 | AH27: 8 | AI27: 6 | AJ27: 4 | AK27: 11 | AL27: 12
I28: 0.04 | J28: 275 | K28: 91 | L28: 1212 | M28: 33.38393236 | N28: 3.06176076 | O28: 7.142174294 | P28: 8.38638794 | Q28: 4.159586005 | R28: 3.850765041 | S28: 7.223742736 | T28: 5.642497766 | U28: 4.036706776 | V28: 5.573456087 | W28: 6.261583988 | X28: 3.14936113 | Y28: 2.544161554 | AA28: 11 | AB28: 3 | AC28: 1 | AD28: 7 | AE28: 9 | AF28: 2 | AG28: 5 | AH28: 8 | AI28: 6 | AJ28: 4 | AK28: 10 | AL28: 12
I29: 0.042 | J29: 297 | K29: 91 | L29: 1212 | M29: 33.38393236 | N29: 3.749213152 | O29: 7.295683571 | P29: 8.540522198 | Q29: 4.671109759 | R29: 4.386686457 | S29: 7.525615966 | T29: 6.32143506 | U29: 4.429439492 | V29: 6.234344164 | W29: 7.17268595 | X29: 3.820511156 | Y29: 3.648633652 | AA29: 11 | AB29: 3 | AC29: 1 | AD29: 7 | AE29: 9 | AF29: 2 | AG29: 5 | AH29: 8 | AI29: 6 | AJ29: 4 | AK29: 10 | AL29: 12
I30: 0.044 | J30: 309 | K30: 83 | L30: 1116 | M30: 33.38393236 | N30: 3.43417616 | O30: 8.139539707 | P30: 9.765700914 | Q30: 6.867776547 | R30: 4.380340977 | S30: 9.335932022 | T30: 7.505355838 | U30: 5.959548303 | V30: 7.147372436 | W30: 7.805067318 | X30: 2.700806595 | Y30: 2.522193037 | AA30: 10 | AB30: 3 | AC30: 1 | AD30: 7 | AE30: 9 | AF30: 2 | AG30: 5 | AH30: 8 | AI30: 6 | AJ30: 4 | AK30: 11 | AL30: 12
I31: 0.046 | J31: 322 | K31: 103 | L31: 1356 | M31: 33.38393236 | N31: 2.74678366 | O31: 7.849489159 | P31: 8.566327356 | Q31: 4.4074039 | R31: 3.132539694 | S31: 8.56086992 | T31: 7.148496207 | U31: 3.896700159 | V31: 6.952845748 | W31: 7.473283939 | X31: 2.64646185 | Y31: 0.6413075379 | AA31: 10 | AB31: 3 | AC31: 1 | AD31: 7 | AE31: 9 | AF31: 2 | AG31: 5 | AH31: 8 | AI31: 6 | AJ31: 4 | AK31: 11 | AL31: 12
I32: 0.048 | J32: 331 | K32: 78 | L32: 1056 | M32: 33.38393236 | N32: 4.021058322 | O32: 8.15509516 | P32: 9.368894147 | Q32: 5.015882476 | R32: 4.149202867 | S32: 9.301975994 | T32: 7.820351966 | U32: 4.367219921 | V32: 5.820054316 | W32: 7.874642688 | X32: 3.397282595 | Y32: 3.059264102 | AA32: 10 | AB32: 3 | AC32: 1 | AD32: 7 | AE32: 9 | AF32: 2 | AG32: 5 | AH32: 8 | AI32: 6 | AJ32: 4 | AK32: 11 | AL32: 12
I33: 0.05 | J33: 335 | K33: 71 | L33: 972 | M33: 33.38393236 | N33: 3.557404743 | O33: 8.862428484 | P33: 9.280494227 | Q33: 7.948080716 | R33: 5.136659017 | S33: 9.239590463 | T33: 8.671154404 | U33: 5.400940507 | V33: 8.178132966 | W33: 8.833677566 | X33: 3.19071049 | Y33: 2.660719082 | AA33: 10 | AB33: 3 | AC33: 1 | AD33: 7 | AE33: 9 | AF33: 2 | AG33: 5 | AH33: 8 | AI33: 6 | AJ33: 4 | AK33: 11 | AL33: 12
I34: 0.052 | J34: 358 | K34: 60 | L34: 840 | M34: 33.38393236 | N34: 2.424811924 | O34: 7.29593759 | P34: 8.407801493 | Q34: 4.664634957 | R34: 2.929208955 | S34: 8.095823354 | T34: 5.949818009 | U34: 4.252307982 | V34: 5.183337178 | W34: 7.223810696 | X34: 1.212573324 | Y34: 1.130603967 | AA34: 10 | AB34: 3 | AC34: 1 | AD34: 7 | AE34: 9 | AF34: 2 | AG34: 5 | AH34: 8 | AI34: 6 | AJ34: 4 | AK34: 11 | AL34: 12
I35: 0.054 | J35: 402 | K35: 87 | L35: 1164 | M35: 33.38393236 | N35: 2.064705114 | O35: 4.971263024 | P35: 7.354627855 | Q35: 3.974155971 | R35: 3.031987575 | S35: 6.097951459 | T35: 4.050566271 | U35: 3.152793362 | V35: 4.045737765 | W35: 4.67281545 | X35: 2.341206357 | Y35: 1.433987297 | AA35: 11 | AB35: 3 | AC35: 1 | AD35: 7 | AE35: 9 | AF35: 2 | AG35: 5 | AH35: 8 | AI35: 6 | AJ35: 4 | AK35: 10 | AL35: 12
I36: 0.056 | J36: 407 | K36: 114 | L36: 1488 | M36: 33.38393236 | N36: 1.346874996 | O36: 5.187677892 | P36: 7.88690958 | Q36: 3.762867369 | R36: 3.115470073 | S36: 6.085885791 | T36: 4.531433921 | U36: 3.514755763 | V36: 4.057474942 | W36: 4.865616831 | X36: 2.33172286 | Y36: 1.123160295 | AA36: 11 | AB36: 3 | AC36: 1 | AD36: 7 | AE36: 9 | AF36: 2 | AG36: 5 | AH36: 8 | AI36: 6 | AJ36: 4 | AK36: 10 | AL36: 12
I37: 0.058 | J37: 430 | K37: 58 | L37: 816 | M37: 33.38393236 | N37: 2.23672014 | O37: 8.003884679 | P37: 9.643347007 | Q37: 5.285366136 | R37: 4.293912881 | S37: 8.69587509 | T37: 5.88885691 | U37: 4.480826089 | V37: 5.641199362 | W37: 6.656776663 | X37: 2.169219977 | Y37: 0.7233320519 | AA37: 10 | AB37: 3 | AC37: 1 | AD37: 7 | AE37: 9 | AF37: 2 | AG37: 5 | AH37: 8 | AI37: 6 | AJ37: 4 | AK37: 11 | AL37: 12
I38: 0.06 | J38: 449 | K38: 70 | L38: 960 | M38: 33.38393236 | N38: 2.38476452 | O38: 8.004987315 | P38: 9.247576062 | Q38: 5.228716714 | R38: 4.46331413 | S38: 8.113706282 | T38: 6.222649506 | U38: 4.522166844 | V38: 6.039713012 | W38: 6.596556533 | X38: 3.746000096 | Y38: 1.655536543 | AA38: 11 | AB38: 3 | AC38: 1 | AD38: 7 | AE38: 9 | AF38: 2 | AG38: 5 | AH38: 8 | AI38: 6 | AJ38: 4 | AK38: 10 | AL38: 12
I39: 0.062 | J39: 461 | K39: 96 | L39: 1272 | M39: 33.38393236 | N39: 1.535928879 | O39: 7.135629533 | P39: 9.227935839 | Q39: 4.572851597 | R39: 3.109946258 | S39: 8.258668298 | T39: 5.972891421 | U39: 4.444666919 | V39: 5.30657792 | W39: 6.600961177 | X39: 2.883931273 | Y39: 1.362419718 | AA39: 11 | AB39: 3 | AC39: 1 | AD39: 7 | AE39: 9 | AF39: 2 | AG39: 5 | AH39: 8 | AI39: 6 | AJ39: 4 | AK39: 10 | AL39: 12
I40: 0.064 | J40: 495 | K40: 110 | L40: 1440 | M40: 33.38393236 | N40: 2.173174724 | O40: 4.585634744 | P40: 6.179695596 | Q40: 3.521726831 | R40: 2.453818336 | S40: 6.106114505 | T40: 4.070965572 | U40: 3.433624625 | V40: 3.739543784 | W40: 4.080771626 | X40: 2.375888296 | Y40: 2.169221479 | AA40: 11 | AB40: 3 | AC40: 1 | AD40: 7 | AE40: 9 | AF40: 2 | AG40: 5 | AH40: 8 | AI40: 6 | AJ40: 4 | AK40: 10 | AL40: 12
I41: 0.066 | J41: 1 | K41: 109 | L41: 1428 | M41: 33.38393236 | N41: 6.742706398 | O41: 4.072860403 | P41: 3.167008175 | Q41: 5.638531459 | R41: 6.544665011 | S41: 3.51435159 | T41: 4.975003107 | U41: 5.824690722 | V41: 5.038255512 | W41: 4.898289013 | X41: 7.495569346 | Y41: 7.868678643 | AA41: 3 | AB41: 10 | AC41: 12 | AD41: 6 | AE41: 4 | AF41: 11 | AG41: 8 | AH41: 5 | AI41: 7 | AJ41: 9 | AK41: 2 | AL41: 1
I42: 0.068 | J42: 12 | K42: 77 | L42: 1044 | M42: 33.38393236 | N42: 7.758353366 | O42: 1.146266327 | P42: 0.3777540754 | Q42: 4.752682349 | R42: 5.987704575 | S42: 0.7142556824 | T42: 4.231551602 | U42: 4.974998823 | V42: 4.453750304 | W42: 3.812753929 | X42: 7.798446249 | Y42: 8.417125388 | AA42: 3 | AB42: 10 | AC42: 12 | AD42: 6 | AE42: 4 | AF42: 11 | AG42: 8 | AH42: 5 | AI42: 7 | AJ42: 9 | AK42: 2 | AL42: 1
I43: 0.07 | J43: 18 | K43: 82 | L43: 1104 | M43: 33.38393236 | N43: 7.39541569 | O43: 2.232626596 | P43: 1.411577614 | Q43: 5.142711805 | R43: 6.955767733 | S43: 2.011970091 | T43: 4.465594659 | U43: 5.798024061 | V43: 4.999708394 | W43: 2.821624403 | X43: 7.136318486 | Y43: 7.928616027 | AA43: 2 | AB43: 10 | AC43: 12 | AD43: 6 | AE43: 4 | AF43: 11 | AG43: 8 | AH43: 5 | AI43: 7 | AJ43: 9 | AK43: 3 | AL43: 1
I44: 0.072 | J44: 41 | K44: 73 | L44: 996 | M44: 33.38393236 | N44: 7.958501424 | O44: 3.333806056 | P44: 0.09708693748 | Q44: 5.554928868 | R44: 7.169371662 | S44: 2.657358605 | T44: 4.740956313 | U44: 7.160214824 | V44: 5.370395691 | W44: 4.268831517 | X44: 7.66518623 | Y44: 9.060454296 | AA44: 2 | AB44: 10 | AC44: 12 | AD44: 6 | AE44: 4 | AF44: 11 | AG44: 8 | AH44: 5 | AI44: 7 | AJ44: 9 | AK44: 3 | AL44: 1
I45: 0.074 | J45: 47 | K45: 79 | L45: 1068 | M45: 33.38393236 | N45: 8.215653165 | O45: 2.561802952 | P45: 1.273382243 | Q45: 4.372336367 | R45: 6.736801854 | S45: 1.70156295 | T45: 3.959544948 | U45: 5.013089157 | V45: 4.070254988 | W45: 3.568735117 | X45: 7.048678089 | Y45: 9.212530755 | AA45: 2 | AB45: 10 | AC45: 12 | AD45: 6 | AE45: 4 | AF45: 11 | AG45: 8 | AH45: 5 | AI45: 7 | AJ45: 9 | AK45: 3 | AL45: 1
I46: 0.076 | J46: 51 | K46: 75 | L46: 1020 | M46: 33.38393236 | N46: 7.987971864 | O46: 0.9572741936 | P46: 0.2605205433 | Q46: 2.564104619 | R46: 7.278192231 | S46: 0.4101375477 | T46: 2.298565163 | U46: 4.507717259 | V46: 2.322780663 | W46: 1.182996811 | X46: 8.030510203 | Y46: 8.062899004 | AA46: 3 | AB46: 10 | AC46: 12 | AD46: 6 | AE46: 4 | AF46: 11 | AG46: 8 | AH46: 5 | AI46: 7 | AJ46: 9 | AK46: 2 | AL46: 1
I47: 0.078 | J47: 58 | K47: 79 | L47: 1068 | M47: 33.38393236 | N47: 7.065008735 | O47: 1.979412225 | P47: 0.4456102708 | Q47: 3.807404107 | R47: 6.633572289 | S47: 1.63572646 | T47: 2.58477409 | U47: 6.007624056 | V47: 3.238203263 | W47: 2.373405517 | X47: 7.039252613 | Y47: 7.545619741 | AA47: 2 | AB47: 10 | AC47: 12 | AD47: 6 | AE47: 4 | AF47: 11 | AG47: 8 | AH47: 5 | AI47: 7 | AJ47: 9 | AK47: 3 | AL47: 1
I48: 0.08 | J48: 79 | K48: 112 | L48: 1464 | M48: 33.38393236 | N48: 7.435543904 | O48: 3.317208266 | P48: 2.186206186 | Q48: 4.959317182 | R48: 7.073571198 | S48: 2.407208287 | T48: 4.01002128 | U48: 5.641060004 | V48: 4.418018848 | W48: 3.590472194 | X48: 7.894620419 | Y48: 8.26022205 | AA48: 3 | AB48: 10 | AC48: 12 | AD48: 6 | AE48: 4 | AF48: 11 | AG48: 8 | AH48: 5 | AI48: 7 | AJ48: 9 | AK48: 2 | AL48: 1
I49: 0.082 | J49: 108 | K49: 73 | L49: 996 | M49: 33.38393236 | N49: 6.902356204 | O49: 3.540192951 | P49: 0.4989817729 | Q49: 5.086590702 | R49: 6.547062077 | S49: 3.026491919 | T49: 4.106122549 | U49: 5.521457451 | V49: 4.171964908 | W49: 3.639993389 | X49: 6.719685905 | Y49: 7.540522322 | AA49: 2 | AB49: 10 | AC49: 12 | AD49: 6 | AE49: 4 | AF49: 11 | AG49: 8 | AH49: 5 | AI49: 7 | AJ49: 9 | AK49: 3 | AL49: 1
I50: 0.084 | J50: 111 | K50: 82 | L50: 1104 | M50: 33.38393236 | N50: 7.5991447 | O50: 2.901451305 | P50: 1.164844281 | Q50: 6.256751488 | R50: 7.517758926 | S50: 1.382227012 | T50: 4.199826332 | U50: 6.820832795 | V50: 4.557577264 | W50: 3.931384422 | X50: 7.603043721 | Y50: 8.838644076 | AA50: 3 | AB50: 10 | AC50: 12 | AD50: 6 | AE50: 4 | AF50: 11 | AG50: 8 | AH50: 5 | AI50: 7 | AJ50: 9 | AK50: 2 | AL50: 1
I51: 0.086 | J51: 147 | K51: 75 | L51: 1020 | M51: 33.38393236 | N51: 8.564185601 | O51: 2.636816789 | P51: 0.9099066748 | Q51: 5.71388615 | R51: 7.556177188 | S51: 1.295998147 | T51: 4.96254437 | U51: 7.308883316 | V51: 5.32654038 | W51: 4.496208855 | X51: 7.674692359 | Y51: 8.740444523 | AA51: 2 | AB51: 10 | AC51: 12 | AD51: 6 | AE51: 4 | AF51: 11 | AG51: 8 | AH51: 5 | AI51: 7 | AJ51: 9 | AK51: 3 | AL51: 1
I52: 0.088 | J52: 148 | K52: 113 | L52: 1476 | M52: 33.38393236 | N52: 6.964155574 | O52: 4.166773175 | P52: 2.889741669 | Q52: 5.78076011 | R52: 6.126180228 | S52: 3.947966556 | T52: 4.700734936 | U52: 6.012162268 | V52: 5.592492584 | W52: 4.547406519 | X52: 7.858006116 | Y52: 8.139869648 | AA52: 3 | AB52: 10 | AC52: 12 | AD52: 6 | AE52: 4 | AF52: 11 | AG52: 8 | AH52: 5 | AI52: 7 | AJ52: 9 | AK52: 2 | AL52: 1
I53: 0.09 | J53: 191 | K53: 73 | L53: 996 | M53: 33.38393236 | N53: 3.442898654 | O53: 1.621271573 | P53: 0.03891052329 | Q53: 3.106920395 | R53: 3.393700921 | S53: 0.1695362988 | T53: 2.472003003 | U53: 3.232738558 | V53: 2.548637443 | W53: 2.195525776 | X53: 4.26166341 | Y53: 7.85898095 | AA53: 3 | AB53: 10 | AC53: 12 | AD53: 6 | AE53: 4 | AF53: 11 | AG53: 8 | AH53: 5 | AI53: 7 | AJ53: 9 | AK53: 2 | AL53: 1
I54: 0.092 | J54: 267 | K54: 69 | L54: 948 | M54: 33.38393236 | N54: 9.087223963 | O54: 4.46628301 | P54: 0.3743587186 | Q54: 7.736880153 | R54: 8.980894331 | S54: 3.266883322 | T54: 5.577323352 | U54: 7.854048866 | V54: 6.375109821 | W54: 4.994122428 | X54: 9.147090488 | Y54: 9.168677681 | AA54: 3 | AB54: 10 | AC54: 12 | AD54: 6 | AE54: 4 | AF54: 11 | AG54: 8 | AH54: 5 | AI54: 7 | AJ54: 9 | AK54: 2 | AL54: 1
I55: 0.094 | J55: 268 | K55: 92 | L55: 1224 | M55: 33.38393236 | N55: 6.663786749 | O55: 2.091892329 | P55: 1.184092139 | Q55: 5.238438553 | R55: 5.753272746 | S55: 2.068409532 | T55: 4.360897627 | U55: 5.611251997 | V55: 4.398089384 | W55: 4.075282869 | X55: 6.175603948 | Y55: 6.942994069 | AA55: 2 | AB55: 10 | AC55: 12 | AD55: 6 | AE55: 4 | AF55: 11 | AG55: 8 | AH55: 5 | AI55: 7 | AJ55: 9 | AK55: 3 | AL55: 1
I56: 0.096 | J56: 276 | K56: 53 | L56: 756 | M56: 33.38393236 | N56: 8.540650379 | O56: 3.005281218 | P56: 1.122488946 | Q56: 5.813484589 | R56: 7.80112245 | S56: 2.935937831 | T56: 4.169659352 | U56: 7.24233095 | V56: 4.35440901 | W56: 4.028306876 | X56: 8.608658074 | Y56: 9.779640768 | AA56: 3 | AB56: 10 | AC56: 12 | AD56: 6 | AE56: 4 | AF56: 11 | AG56: 8 | AH56: 5 | AI56: 7 | AJ56: 9 | AK56: 2 | AL56: 1
I57: 0.098 | J57: 344 | K57: 84 | L57: 1128 | M57: 33.38393236 | N57: 7.58803755 | O57: 1.820117736 | P57: 1.104912848 | Q57: 4.271154537 | R57: 6.988222555 | S57: 1.80588778 | T57: 3.088455017 | U57: 5.046264177 | V57: 3.143597406 | W57: 2.182547595 | X57: 7.271107234 | Y57: 8.50559832 | AA57: 2 | AB57: 10 | AC57: 12 | AD57: 6 | AE57: 4 | AF57: 11 | AG57: 8 | AH57: 5 | AI57: 7 | AJ57: 9 | AK57: 3 | AL57: 1
I58: 0.1 | J58: 364 | K58: 81 | L58: 1092 | M58: 33.38393236 | N58: 7.811104464 | O58: 2.997145091 | P58: 0.9940545545 | Q58: 4.608923432 | R58: 7.166998105 | S58: 1.204137381 | T58: 3.784052995 | U58: 5.39285072 | V58: 3.960048323 | W58: 3.029055147 | X58: 7.327517195 | Y58: 8.140677471 | AA58: 2 | AB58: 10 | AC58: 12 | AD58: 6 | AE58: 4 | AF58: 11 | AG58: 8 | AH58: 5 | AI58: 7 | AJ58: 9 | AK58: 3 | AL58: 1
I59: 0.102 | J59: 380 | K59: 82 | L59: 1104 | M59: 33.38393236 | N59: 9.296564058 | O59: 1.631404953 | P59: 0.9143517597 | Q59: 7.949181351 | R59: 8.027161995 | S59: 0.9429509395 | T59: 3.676910162 | U59: 7.952066816 | V59: 6.53822109 | W59: 2.943029222 | X59: 8.360374574 | Y59: 9.325454634 | AA59: 2 | AB59: 10 | AC59: 12 | AD59: 6 | AE59: 4 | AF59: 11 | AG59: 8 | AH59: 5 | AI59: 7 | AJ59: 9 | AK59: 3 | AL59: 1
I60: 0.104 | J60: 414 | K60: 107 | L60: 1404 | M60: 33.38393236 | N60: 7.735008336 | O60: 4.655186846 | P60: 3.325472646 | Q60: 6.608509041 | R60: 7.720962095 | S60: 3.669214871 | T60: 6.051365723 | U60: 7.129787493 | V60: 6.236044308 | W60: 5.652205695 | X60: 8.39017751 | Y60: 8.420486855 | AA60: 3 | AB60: 10 | AC60: 12 | AD60: 6 | AE60: 4 | AF60: 11 | AG60: 8 | AH60: 5 | AI60: 7 | AJ60: 9 | AK60: 2 | AL60: 1
I61: 0.106 | J61: 444 | K61: 101 | L61: 1332 | M61: 33.38393236 | N61: 5.785611329 | O61: 1.741587333 | P61: 1.029643263 | Q61: 4.211582578 | R61: 5.763943891 | S61: 1.694707977 | T61: 3.510136267 | U61: 5.203018219 | V61: 3.69449433 | W61: 1.933703573 | X61: 8.136893736 | Y61: 8.749942288 | AA61: 3 | AB61: 10 | AC61: 12 | AD61: 6 | AE61: 4 | AF61: 11 | AG61: 8 | AH61: 5 | AI61: 7 | AJ61: 9 | AK61: 2 | AL61: 1
I62: 0.108 | J62: 445 | K62: 92 | L62: 1224 | M62: 33.38393236 | N62: 6.362340238 | O62: 2.258777196 | P62: 1.253625267 | Q62: 4.900356205 | R62: 5.639280541 | S62: 2.090036308 | T62: 3.869052579 | U62: 4.951763563 | V62: 4.807022018 | W62: 2.296931851 | X62: 6.952765859 | Y62: 8.768747044 | AA62: 3 | AB62: 10 | AC62: 12 | AD62: 6 | AE62: 4 | AF62: 11 | AG62: 8 | AH62: 5 | AI62: 7 | AJ62: 9 | AK62: 2 | AL62: 1
I63: 0.11 | J63: 448 | K63: 99 | L63: 1308 | M63: 33.38393236 | N63: 5.817663896 | O63: 3.124521597 | P63: 2.061716935 | Q63: 4.235117407 | R63: 5.787556644 | S63: 2.851924173 | T63: 3.411238527 | U63: 4.943934001 | V63: 4.106507247 | W63: 3.220448858 | X63: 6.60336114 | Y63: 8.711618443 | AA63: 3 | AB63: 10 | AC63: 12 | AD63: 6 | AE63: 4 | AF63: 11 | AG63: 8 | AH63: 5 | AI63: 7 | AJ63: 9 | AK63: 2 | AL63: 1
I64: 0.112 | J64: 480 | K64: 90 | L64: 1200 | M64: 33.38393236 | N64: 8.883748533 | O64: 2.829302157 | P64: 2.418493985 | Q64: 4.661132853 | R64: 7.039622366 | S64: 2.492360768 | T64: 3.479212646 | U64: 6.318720715 | V64: 4.061112568 | W64: 2.897530471 | X64: 7.465010068 | Y64: 8.984030228
I65: 0.114 | J65: 484 | K65: 89 | L65: 1188 | M65: 33.38393236 | N65: 6.50396753 | O65: 1.327608814 | P65: 0.7325363227 | Q65: 5.399585225 | R65: 5.973079201 | S65: 1.012755674 | T65: 2.55183079 | U65: 5.487659247 | V65: 2.833155368 | W65: 2.522995556 | X65: 7.443274677 | Y65: 8.001521283
I66: 0.116 | J66: 443 | K66: 91 | L66: 1212 | M66: 33.59755506 | N66: 7.707958778 | O66: 1.687541989 | P66: 1.517264127 | Q66: 4.196574855 | R66: 5.853841271 | S66: 0.7771539275 | T66: 3.596265272 | U66: 5.198677859 | V66: 3.617917498 | W66: 3.565804731 | X66: 5.99683558 | Y66: 7.986751689
I67: 0.118 | J67: 29 | K67: 84 | L67: 1128 | M67: 33.72740431 | N67: 8.470656454 | O67: 1.482102106 | P67: 0.883789659 | Q67: 4.129127383 | R67: 7.137477007 | S67: 1.134866738 | T67: 3.643639109 | U67: 5.837366672 | V67: 2.74922216 | W67: 1.656220674 | X67: 8.262286603 | Y67: 8.83294549
I68: 0.12 | J68: 351 | K68: 78 | L68: 1056 | M68: 33.72740431 | N68: 1.311638643 | O68: 6.725413471 | P68: 8.457804999 | Q68: 2.948977577 | R68: 1.417325542 | S68: 7.890668329 | T68: 3.379748236 | U68: 2.335488034 | V68: 5.054823532 | W68: 5.897352917 | X68: 0.5819257709 | Y68: 0.4386246394
I69: 0.122 | J69: 485 | K69: 91 | L69: 1212 | M69: 33.72740431 | N69: 2.03616673 | O69: 6.878032268 | P69: 8.079045447 | Q69: 4.768833926 | R69: 2.688851607 | S69: 7.904114506 | T69: 4.806740316 | U69: 3.480911016 | V69: 5.412965466 | W69: 5.704532022 | X69: 1.791537123 | Y69: 0.5912497439
I70: 0.124 | J70: 158 | K70: 80 | L70: 1080 | M70: 33.83424427 | N70: 3.238763518 | O70: 8.175679822 | P70: 9.329506849 | Q70: 3.518959459 | R70: 1.752371534 | S70: 9.184096998 | T70: 7.779499352 | U70: 3.250533724 | V70: 6.303745349 | W70: 8.065478527 | X70: 1.514474765 | Y70: 1.382196374
I71: 0.126 | J71: 317 | K71: 126 | L71: 1632 | M71: 33.83424427 | N71: 4.680801011 | O71: 6.664120464 | P71: 8.435373974 | Q71: 5.05777846 | R71: 2.531755869 | S71: 7.585548079 | T71: 6.38139859 | U71: 4.743339423 | V71: 6.273924841 | W71: 6.63126339 | X71: 2.429437427 | Y71: 2.244065995
I72: 0.128 | J72: 95 | K72: 77 | L72: 1044 | M72: 34.07474745 | N72: 8.45786735 | O72: 3.254765051 | P72: 0.6938122143 | Q72: 4.301659806 | R72: 8.419422896 | S72: 1.165414967 | T72: 3.888280339 | U72: 7.049656093 | V72: 4.047470051 | W72: 3.791270993 | X72: 7.369888978 | Y72: 8.593338494
I73: 0.13 | J73: 168 | K73: 70 | L73: 960 | M73: 34.09663839 | N73: 3.509738857 | O73: 8.061115703 | P73: 0.9139268558 | Q73: 5.338604736 | R73: 3.653472301 | S73: 9.543366427 | T73: 6.08602681 | U73: 5.200756668 | V73: 5.578551844 | W73: 7.238883759 | X73: 3.478809784 | Y73: 3.258948023
I74: 0.132 | J74: 177 | K74: 96 | L74: 1272 | M74: 34.09663839 | N74: 3.890677608 | O74: 6.318800604 | P74: 2.424107041 | Q74: 4.915527512 | R74: 4.381938579 | S74: 9.362852207 | T74: 5.608048718 | U74: 4.8894509 | V74: 5.453625597 | W74: 5.87515362 | X74: 3.819507781 | Y74: 3.568187586
I75: 0.134 | J75: 204 | K75: 76 | L75: 1032 | M75: 34.09663839 | N75: 3.07326851 | O75: 7.397543795 | P75: 0.8960644689 | Q75: 5.590735537 | R75: 4.657005474 | S75: 9.066612484 | T75: 6.06262674 | U75: 5.49962366 | V75: 6.01167016 | W75: 6.547406426 | X75: 2.977887393 | Y75: 1.254266712
I76: 0.136 | J76: 284 | K76: 94 | L76: 1248 | M76: 34.09663839 | N76: 4.337354786 | O76: 7.894729952 | P76: 0.857138665 | Q76: 5.642138308 | R76: 4.411687294 | S76: 8.22587945 | T76: 7.27057287 | U76: 5.56050592 | V76: 5.733097059 | W76: 7.801541962 | X76: 3.742481726 | Y76: 2.928368808
I77: 0.138 | J77: 350 | K77: 58 | L77: 816 | M77: 34.09663839 | N77: 1.517102127 | O77: 8.976561652 | P77: 0.02544860872 | Q77: 2.058352826 | R77: 1.544463827 | S77: 9.915249508 | T77: 8.082551009 | U77: 1.627086902 | V77: 5.061433146 | W77: 8.639425887 | X77: 1.35773326 | Y77: 1.097201902
I78: 0.14 | J78: 388 | K78: 87 | L78: 1164 | M78: 34.09663839 | N78: 5.064493162 | O78: 8.72403026 | P78: 3.06726919 | Q78: 6.986289162 | R78: 5.070214425 | S78: 8.798363308 | T78: 7.584864889 | U78: 6.16360886 | V78: 7.42673376 | W78: 8.644509873 | X78: 4.564854205 | Y78: 3.872155691
I79: 0.142 | J79: 73 | K79: 100 | L79: 1320 | M79: 34.09663839 | N79: 5.727193801 | O79: 0.3404082591 | P79: 7.728430421 | Q79: 4.500473365 | R79: 5.639600215 | S79: 0.3341399623 | T79: 2.421916675 | U79: 4.551513587 | V79: 4.358844552 | W79: 0.7361459086 | X79: 7.357158044 | Y79: 7.629005231
I80: 0.144 | J80: 87 | K80: 87 | L80: 1164 | M80: 34.09663839 | N80: 4.336237133 | O80: 1.276814201 | P80: 6.124685823 | Q80: 3.055606214 | R80: 4.227914168 | S80: 1.270475843 | T80: 2.133328016 | U80: 3.623760366 | V80: 2.893707369 | W80: 1.632495052 | X80: 4.323935149 | Y80: 5.127118695
I81: 0.146 | J81: 215 | K81: 64 | L81: 888 | M81: 34.09663839 | N81: 6.250308235 | O81: 1.431531012 | P81: 8.40663105 | Q81: 4.086846344 | R81: 5.135349642 | S81: 0.8614603715 | T81: 2.743199066 | U81: 5.080506963 | V81: 3.008481044 | W81: 2.533385114 | X81: 6.716928321 | Y81: 7.7091139
I82: 0.148 | J82: 233 | K82: 77 | L82: 1044 | M82: 34.09663839 | N82: 5.581227103 | O82: 1.657749717 | P82: 8.586605924 | Q82: 2.548593547 | R82: 4.767553772 | S82: 1.546181371 | T82: 2.132602392 | U82: 4.134517319 | V82: 2.516750665 | W82: 1.931195573 | X82: 6.239778326 | Y82: 6.804503964
I83: 0.15 | J83: 234 | K83: 76 | L83: 1032 | M83: 34.09663839 | N83: 6.999307583 | O83: 1.505970724 | P83: 8.010511785 | Q83: 4.210693949 | R83: 6.394245969 | S83: 0.6550146899 | T83: 3.844905402 | U83: 6.287263683 | V83: 4.134865268 | W83: 2.251615264 | X83: 6.971474017 | Y83: 7.670819304
I84: 0.152 | J84: 242 | K84: 70 | L84: 960 | M84: 34.09663839 | N84: 7.250993476 | O84: 0.48427167 | P84: 8.490451735 | Q84: 5.954442821 | R84: 6.593211798 | S84: 0.2678894883 | T84: 4.238808774 | U84: 6.068190735 | V84: 4.519978581 | W84: 1.313331838 | X84: 6.706120656 | Y84: 7.527677497
I85: 0.154 | J85: 270 | K85: 72 | L85: 984 | M85: 34.09663839 | N85: 7.451127623 | O85: 0.9364136877 | P85: 9.269367534 | Q85: 4.623766793 | R85: 5.153547972 | S85: 0.1998885767 | T85: 4.40625584 | U85: 4.751343144 | V85: 4.569407011 | W85: 1.269403145 | X85: 7.584134839 | Y85: 8.477810993
I86: 0.156 | J86: 482 | K86: 95 | L86: 1260 | M86: 34.09663839 | N86: 6.940254271 | O86: 1.271004677 | P86: 8.66701459 | Q86: 5.335183117 | R86: 6.848940319 | S86: 1.082707902 | T86: 2.466312524 | U86: 5.401525051 | V86: 3.66702893 | W86: 2.114516846 | X86: 7.275857035 | Y86: 7.518157864
I87: 0.158 | J87: 500 | K87: 68 | L87: 936 | M87: 34.09663839 | N87: 7.911471857 | O87: 1.728146315 | P87: 9.358953805 | Q87: 5.258058775 | R87: 7.337939668 | S87: 1.350640384 | T87: 2.428401072 | U87: 6.401473537 | V87: 4.031458774 | W87: 1.796118089 | X87: 7.80836859 | Y87: 8.46953899
I88: 0.16 | J88: 4 | K88: 80 | L88: 1080 | M88: 34.33063888 | N88: 4.718990208 | O88: 8.06474688 | P88: 3.105955082 | Q88: 6.291015017 | R88: 4.995770592 | S88: 2.046342983 | T88: 7.016079987 | U88: 5.422228725 | V88: 6.375270502 | W88: 7.263809975 | X88: 3.25230568 | Y88: 3.248139586
I89: 0.162 | J89: 116 | K89: 76 | L89: 1032 | M89: 34.33063888 | N89: 3.937674662 | O89: 7.954857731 | P89: 2.151523336 | Q89: 6.234794608 | R89: 4.808529861 | S89: 1.868891456 | T89: 6.882166606 | U89: 5.074214253 | V89: 6.416209417 | W89: 7.924827828 | X89: 3.074505774 | Y89: 2.994664395
I90: 0.164 | J90: 184 | K90: 77 | L90: 1044 | M90: 34.33063888 | N90: 3.619230437 | O90: 9.279126412 | P90: 1.959833106 | Q90: 5.865689164 | R90: 4.064886395 | S90: 1.864466869 | T90: 6.442079334 | U90: 4.30727519 | V90: 6.282971056 | W90: 8.8715079 | X90: 3.980387368 | Y90: 3.106506021
I91: 0.166 | J91: 262 | K91: 65 | L91: 900 | M91: 34.33063888 | N91: 4.358438905 | O91: 9.877755211 | P91: 3.804171893 | Q91: 7.560664971 | R91: 6.625503648 | S91: 0.4647610093 | T91: 8.416652895 | U91: 6.708531033 | V91: 8.160241895 | W91: 9.363038847 | X91: 6.029839868 | Y91: 4.319897102
I92: 0.168 | J92: 264 | K92: 65 | L92: 900 | M92: 34.33063888 | N92: 4.900237685 | O92: 9.479028859 | P92: 2.018671387 | Q92: 8.078161824 | R92: 5.670194608 | S92: 1.974140815 | T92: 8.686630566 | U92: 6.700005673 | V92: 8.655735801 | W92: 9.026389935 | X92: 5.637728104 | Y92: 3.402304049
I93: 0.17 | J93: 318 | K93: 83 | L93: 1116 | M93: 34.33063888 | N93: 3.834609148 | O93: 7.565119678 | P93: 2.276233136 | Q93: 6.476574357 | R93: 4.580135025 | S93: 0.7725635602 | T93: 7.187572112 | U93: 6.298937406 | V93: 7.012325504 | W93: 7.272549836 | X93: 3.129035635 | Y93: 2.943233485
I94: 0.172 | J94: 419 | K94: 88 | L94: 1176 | M94: 34.33063888 | N94: 4.23155929 | O94: 9.720528337 | P94: 1.360625114 | Q94: 4.875599149 | R94: 4.281540218 | S94: 1.317093702 | T94: 7.08533087 | U94: 4.357998453 | V94: 6.144743127 | W94: 9.677421502 | X94: 3.594144825 | Y94: 2.647371407
I95: 0.174 | J95: 453 | K95: 102 | L95: 1344 | M95: 34.33063888 | N95: 5.617996318 | O95: 9.064349074 | P95: 3.471825869 | Q95: 8.808185974 | R95: 6.087258943 | S95: 3.455517004 | T95: 8.946684103 | U95: 7.846960242 | V95: 8.945635682 | W95: 9.033651894 | X95: 4.090255658 | Y95: 3.91836284
I96: 0.176 | J96: 457 | K96: 71 | L96: 972 | M96: 34.33063888 | N96: 4.376254921 | O96: 9.323506509 | P96: 2.38565911 | Q96: 6.848415377 | R96: 6.188855374 | S96: 1.690835441 | T96: 8.029245432 | U96: 6.556862536 | V96: 7.406264632 | W96: 8.591373074 | X96: 5.892008621 | Y96: 3.624873098
I97: 0.178 | J97: 479 | K97: 71 | L97: 972 | M97: 34.33063888 | N97: 2.707680633 | O97: 9.294773432 | P97: 1.701243848 | Q97: 5.060446156 | R97: 3.433761578 | S97: 1.602107579 | T97: 7.129652437 | U97: 4.926007045 | V97: 5.166728025 | W97: 8.740819488 | X97: 2.470816032 | Y97: 2.331531346
I98: 0.18 | J98: 175 | K98: 81 | L98: 1092 | M98: 34.33063888 | N98: 5.480006895 | O98: 0.9743034686 | P98: 6.742864341 | Q98: 3.113262851 | R98: 3.601033608 | S98: 7.281054274 | T98: 1.664772431 | U98: 3.283854315 | V98: 2.331677808 | W98: 1.191549616 | X98: 3.606270912 | Y98: 6.073681294
I99: 0.182 | J99: 201 | K99: 83 | L99: 1116 | M99: 34.33063888 | N99: 5.355454026 | O99: 0.04726868039 | P99: 9.071623812 | Q99: 1.559708329 | R99: 4.056651717 | S99: 9.369605629 | T99: 1.047737122 | U99: 3.237557691 | V99: 1.481635343 | W99: 0.3405404695 | X99: 5.618100804 | Y99: 6.947238757
I100: 0.184 | J100: 260 | K100: 83 | L100: 1116 | M100: 34.33063888 | N100: 6.136769468 | O100: 1.74595638 | P100: 9.128887441 | Q100: 4.925048017 | R100: 5.965551182 | S100: 9.252920797 | T100: 4.519002526 | U100: 5.433536372 | V100: 4.566554059 | W100: 1.835666961 | X100: 6.109880368 | Y100: 8.604695501
I101: 0.186 | J101: 305 | K101: 100 | L101: 1320 | M101: 34.33063888 | N101: 6.246638984 | O101: 2.148557367 | P101: 7.488933838 | Q101: 4.464244888 | R101: 5.399784637 | S101: 8.143797484 | T101: 3.893704438 | U101: 5.205878201 | V101: 3.980546366 | W101: 3.469981601 | X101: 5.696806929 | Y101: 6.897094804
I102: 0.188 | J102: 337 | K102: 77 | L102: 1044 | M102: 34.33063888 | N102: 6.286819011 | O102: 0.733208794 | P102: 8.55131001 | Q102: 3.24773386 | R102: 5.116284762 | S102: 9.356600951 | T102: 1.831709285 | U102: 4.481672456 | V102: 2.102521916 | W102: 0.747611581 | X102: 7.682445779 | Y102: 8.026814015
I103: 0.19 | J103: 357 | K103: 79 | L103: 1068 | M103: 34.33063888 | N103: 6.977045734 | O103: 0.2937152152 | P103: 8.285395397 | Q103: 5.868210529 | R103: 6.747688431 | S103: 9.393157345 | T103: 5.326178513 | U103: 6.140145931 | V103: 5.549242536 | W103: 0.856462015 | X103: 6.915246972 | Y103: 8.212867764
I104: 0.192 | J104: 2 | K104: 87 | L104: 1164 | M104: 34.39040253 | N104: 5.909964192 | O104: 8.979462682 | P104: 8.994415269 | Q104: 7.239608281 | R104: 5.968470258 | S104: 8.982045392 | T104: 0.7987732009 | U104: 7.169451965 | V104: 0.8720400476 | W104: 7.782949378 | X104: 4.491423018 | Y104: 1.736629584
I105: 0.194 | J105: 60 | K105: 104 | L105: 1368 | M105: 34.39040253 | N105: 4.13724989 | O105: 6.871325815 | P105: 7.674267819 | Q105: 6.277594717 | R105: 5.999062482 | S105: 7.356662166 | T105: 0.1746750742 | U105: 6.220871575 | V105: 0.5739545177 | W105: 6.726117037 | X105: 2.772357373 | Y105: 1.931943818
I106: 0.196 | J106: 131 | K106: 82 | L106: 1104 | M106: 34.39040253 | N106: 4.378732096 | O106: 7.320955313 | P106: 9.860767869 | Q106: 5.165665474 | R106: 4.595884379 | S106: 7.34884336 | T106: 2.669947257 | U106: 4.735648271 | V106: 2.982483347 | W106: 6.911136928 | X106: 4.570833758 | Y106: 3.362818008
I107: 0.198 | J107: 144 | K107: 69 | L107: 948 | M107: 34.39040253 | N107: 3.37328766 | O107: 7.433648294 | P107: 8.566852911 | Q107: 5.754974942 | R107: 5.217176665 | S107: 8.007621078 | T107: 0.2893590955 | U107: 5.676023539 | V107: 1.312047082 | W107: 6.644753315 | X107: 5.011303212 | Y107: 2.891248057
I108: 0.2 | J108: 209 | K108: 63 | L108: 876 | M108: 34.39040253 | N108: 4.62025844 | O108: 7.340471003 | P108: 9.720559129 | Q108: 6.475565872 | R108: 5.792133458 | S108: 7.636384589 | T108: 1.834159612 | U108: 6.40961606 | V108: 2.201361419 | W108: 7.119900358 | X108: 4.222577992 | Y108: 4.14949333
I109: 0.202 | J109: 232 | K109: 85 | L109: 1140 | M109: 34.39040253 | N109: 2.622926806 | O109: 6.911602638 | P109: 9.984276987 | Q109: 5.297286858 | R109: 2.928543132 | S109: 8.084326702 | T109: 1.709624511 | U109: 4.230458115 | V109: 2.040713748 | W109: 5.302465913 | X109: 2.56115787 | Y109: 2.473235965
I110: 0.204 | J110: 272 | K110: 105 | L110: 1380 | M110: 34.39040253 | N110: 4.422482964 | O110: 5.582706991 | P110: 6.347726369 | Q110: 5.46098699 | R110: 4.441113185 | S110: 6.038707173 | T110: 2.094954149 | U110: 4.770875282 | V110: 2.57640435 | W110: 5.476916728 | X110: 4.260328187 | Y110: 3.659841366
I111: 0.206 | J111: 328 | K111: 120 | L111: 1560 | M111: 34.39040253 | N111: 2.685315997 | O111: 3.875117227 | P111: 5.820382493 | Q111: 3.738150872 | R111: 3.648685285 | S111: 5.465112192 | T111: 0.1515336161 | U111: 3.680645589 | V111: 0.8810604994 | W111: 3.865516332 | X111: 2.022354673 | Y111: 1.309977177
I112: 0.208 | J112: 384 | K112: 79 | L112: 1068 | M112: 34.39040253 | N112: 4.115318619 | O112: 7.9611012 | P112: 8.930114684 | Q112: 6.30787264 | R112: 5.745302524 | S112: 8.796144187 | T112: 2.685903003 | U112: 5.849740595 | V112: 2.982212145 | W112: 6.716630424 | X112: 5.182412902 | Y112: 3.666945988
I113: 0.21 | J113: 410 | K113: 95 | L113: 1260 | M113: 34.39040253 | N113: 3.926541972 | O113: 8.153350693 | P113: 9.596420959 | Q113: 6.645344397 | R113: 5.369445119 | S113: 8.849000561 | T113: 1.318918924 | U113: 6.015273232 | V113: 3.145330004 | W113: 7.48588037 | X113: 4.403266533 | Y113: 3.21179105
I114: 0.212 | J114: 429 | K114: 73 | L114: 996 | M114: 34.39040253 | N114: 3.076049701 | O114: 5.860099106 | P114: 9.387345563 | Q114: 4.706822144 | R114: 3.976408471 | S114: 7.912814362 | T114: 0.3138223192 | U114: 4.12548686 | V114: 1.427278858 | W114: 5.742227018 | X114: 3.706960791 | Y114: 1.92838876
I115: 0.214 | J115: 493 | K115: 64 | L115: 888 | M115: 34.39040253 | N115: 3.466121794 | O115: 8.665262957 | P115: 9.239865955 | Q115: 6.754551785 | R115: 3.789005928 | S115: 9.122136528 | T115: 0.9466754174 | U115: 5.071076734 | V115: 1.588780366 | W115: 7.282171021 | X115: 3.583406519 | Y115: 2.138808619
I116: 0.216 | J116: 65 | K116: 79 | L116: 1068 | M116: 34.39040253 | N116: 5.26988696 | O116: 0.8472966248 | P116: 0.01874999624 | Q116: 2.328048802 | R116: 4.070609465 | S116: 0.4982374529 | T116: 7.938614077 | U116: 3.592533289 | V116: 6.466094661 | W116: 2.150228151 | X116: 5.32617418 | Y116: 6.205476143
I117: 0.218 | J117: 93 | K117: 98 | L117: 1296 | M117: 34.39040253 | N117: 6.147869852 | O117: 3.131386766 | P117: 1.544163558 | Q117: 4.22975275 | R117: 4.766985046 | S117: 2.172450885 | T117: 7.751760374 | U117: 4.662811918 | V117: 6.694284137 | W117: 3.663895783 | X117: 6.390540569 | Y117: 6.541919936
I118: 0.22 | J118: 134 | K118: 124 | L118: 1608 | M118: 34.39040253 | N118: 3.589878597 | O118: 1.29945779 | P118: 0.2513171968 | Q118: 1.517454199 | R118: 2.170307931 | S118: 1.008630676 | T118: 7.059720105 | U118: 1.553652813 | V118: 5.468281528 | W118: 1.400599677 | X118: 3.606656261 | Y118: 5.037035579
I119: 0.222 | J119: 172 | K119: 119 | L119: 1548 | M119: 34.39040253 | N119: 7.459232546 | O119: 3.727134866 | P119: 3.010234483 | Q119: 5.050075367 | R119: 7.454709024 | S119: 3.688745226 | T119: 8.363765392 | U119: 7.307326851 | V119: 8.120058886 | W119: 4.296256873 | X119: 7.547829774 | Y119: 7.691966666
I120: 0.224 | J120: 187 | K120: 73 | L120: 996 | M120: 34.39040253 | N120: 6.719783701 | O120: 3.672978191 | P120: 0.2689518925 | Q120: 4.254987974 | R120: 5.258138187 | S120: 2.367274079 | T120: 8.771501454 | U120: 4.901864149 | V120: 8.770409498 | W120: 4.223330354 | X120: 6.873977444 | Y120: 7.660941404
I121: 0.226 | J121: 217 | K121: 57 | L121: 804 | M121: 34.39040253 | N121: 6.042498775 | O121: 2.129056702 | P121: 1.129490153 | Q121: 3.450116222 | R121: 5.877297326 | S121: 1.926131658 | T121: 9.564944329 | U121: 4.016314169 | V121: 9.292748997 | W121: 2.717064492 | X121: 6.253730963 | Y121: 8.086808529
I122: 0.228 | J122: 230 | K122: 99 | L122: 1308 | M122: 34.39040253 | N122: 3.911559561 | O122: 1.971565253 | P122: 0.879940103 | Q122: 3.178038402 | R122: 3.710590187 | S122: 1.054640421 | T122: 8.765350707 | U122: 3.275289218 | V122: 5.463084657 | W122: 2.680102866 | X122: 3.84558552 | Y122: 4.037413589
I123: 0.23 | J123: 301 | K123: 57 | L123: 804 | M123: 34.39040253 | N123: 5.294118138 | O123: 1.438193915 | P123: 0.01437607805 | Q123: 2.519904718 | R123: 5.164548701 | S123: 0.06292450381 | T123: 9.081909981 | U123: 2.63522796 | V123: 8.489189555 | W123: 2.027698952 | X123: 5.981925171 | Y123: 6.768681717
I124: 0.232 | J124: 334 | K124: 79 | L124: 1068 | M124: 34.39040253 | N124: 6.225666157 | O124: 1.708738347 | P124: 0.0693752755 | Q124: 4.064073745 | R124: 5.06149417 | S124: 0.7809261569 | T124: 8.399476394 | U124: 4.249554549 | V124: 8.258829973 | W124: 2.841842121 | X124: 6.097299237 | Y124: 6.367483247
I125: 0.234 | J125: 406 | K125: 84 | L125: 1128 | M125: 34.39040253 | N125: 3.928721967 | O125: 1.809978142 | P125: 1.269253019 | Q125: 3.273302471 | R125: 3.796953039 | S125: 1.500541022 | T125: 9.780105034 | U125: 3.438381884 | V125: 9.087059006 | W125: 3.19199646 | X125: 4.415989142 | Y125: 4.916798876
I126: 0.236 | J126: 423 | K126: 76 | L126: 1032 | M126: 34.39040253 | N126: 6.243670218 | O126: 2.589899763 | P126: 2.098962378 | Q126: 4.289645722 | R126: 5.708757026 | S126: 2.107739569 | T126: 8.670245271 | U126: 5.626290138 | V126: 8.193472351 | W126: 2.593921374 | X126: 7.368283652 | Y126: 7.610369066
I127: 0.238 | J127: 432 | K127: 76 | L127: 1032 | M127: 34.39040253 | N127: 4.82827209 | O127: 1.478614932 | P127: 0.07213166744 | Q127: 1.986079579 | R127: 4.431026088 | S127: 1.179279517 | T127: 9.045766142 | U127: 3.996004063 | V127: 8.279253996 | W127: 1.687268405 | X127: 6.012731608 | Y127: 6.505709688
I128: 0.24 | J128: 469 | K128: 71 | L128: 972 | M128: 34.39040253 | N128: 7.57870046 | O128: 3.60372921 | P128: 2.064169545 | Q128: 5.787201772 | R128: 7.366259898 | S128: 2.533860322 | T128: 9.282972264 | U128: 6.188718899 | V128: 8.703947408 | W128: 3.926879188 | X128: 8.304504917 | Y128: 8.493115655
I129: 0.242 | J129: 489 | K129: 78 | L129: 1056 | M129: 34.39040253 | N129: 5.195235642 | O129: 1.192886151 | P129: 0.4043477903 | Q129: 2.899166336 | R129: 4.438850351 | S129: 0.4187602017 | T129: 7.042748916 | U129: 3.903902551 | V129: 5.297258748 | W129: 1.244402252 | X129: 5.053924852 | Y129: 5.271914304
I130: 0.244 | J130: 127 | K130: 81 | L130: 1092 | M130: 34.45157091 | N130: 5.141878626 | O130: 9.712656417 | P130: 9.76618793 | Q130: 7.080446712 | R130: 6.154945497 | S130: 2.923629653 | T130: 7.705960918 | U130: 7.055642486 | V130: 7.128310429 | W130: 8.089854001 | X130: 4.11919655 | Y130: 2.940224644
I131: 0.246 | J131: 435 | K131: 102 | L131: 1344 | M131: 34.45157091 | N131: 5.52639553 | O131: 1.742180008 | P131: 0.7961229643 | Q131: 2.654873334 | R131: 5.200772273 | S131: 5.889607338 | T131: 2.425736611 | U131: 4.680559392 | V131: 2.497714115 | W131: 1.978506286 | X131: 5.625746674 | Y131: 5.750027669
I132: 0.248 | J132: 63 | K132: 83 | L132: 1116 | M132: 34.47194869 | N132: 1.693029669 | O132: 9.003336183 | P132: 0.1388016706 | Q132: 7.026842293 | R132: 4.332798303 | S132: 0.3869671079 | T132: 7.368101359 | U132: 4.34494649 | V132: 7.19781764 | W132: 8.543961403 | X132: 1.379955971 | Y132: 0.3943143042
I133: 0.25 | J133: 376 | K133: 68 | L133: 936 | M133: 34.47194869 | N133: 1.559697959 | O133: 9.834524647 | P133: 0.488192227 | Q133: 6.707787991 | R133: 3.415690678 | S133: 1.022864863 | T133: 7.990692835 | U133: 4.840135034 | V133: 7.718603347 | W133: 9.327996414 | X133: 1.853064144 | Y133: 1.119612944
I134: 0.252 | J134: 101 | K134: 67 | L134: 924 | M134: 34.56704979 | N134: 5.59762189 | O134: 1.569306049 | P134: 0.1240613794 | Q134: 4.295531195 | R134: 7.065575859 | S134: 0.2974291945 | T134: 2.750911393 | U134: 5.560281564 | V134: 4.279253376 | W134: 1.773425814 | X134: 6.346321356 | Y134: 7.30914107
I135: 0.254 | J135: 3 | K135: 62 | L135: 864 | M135: 34.59539079 | N135: 2.773096932 | O135: 7.058412394 | P135: 7.414403194 | Q135: 0.7658867957 | R135: 3.37828632 | S135: 7.26221102 | T135: 0.1199933567 | U135: 4.667497113 | V135: 0.651094201 | W135: 5.621880272 | X135: 2.608566362 | Y135: 2.519208462
I136: 0.256 | J136: 11 | K136: 68 | L136: 936 | M136: 34.59539079 | N136: 3.287000477 | O136: 8.727837689 | P136: 8.882297109 | Q136: 0.5876769882 | R136: 5.27067993 | S136: 8.850595743 | T136: 0.2658676844 | U136: 5.417377968 | V136: 0.355549374 | W136: 7.395507602 | X136: 1.345543088 | Y136: 0.9665893205
I137: 0.258 | J137: 34 | K137: 85 | L137: 1140 | M137: 34.59539079 | N137: 5.648893537 | O137: 7.843052091 | P137: 8.757282296 | Q137: 2.73157923 | R137: 5.712379174 | S137: 8.245496604 | T137: 2.450369284 | U137: 6.353205543 | V137: 2.702703209 | W137: 7.442243354 | X137: 5.690909985 | Y137: 5.297583884
I138: 0.26 | J138: 45 | K138: 68 | L138: 936 | M138: 34.59539079 | N138: 6.947157603 | O138: 5.216181542 | P138: 1.420349334 | Q138: 7.504724189 | R138: 6.56735519 | S138: 1.984422902 | T138: 9.973867987 | U138: 5.506628447 | V138: 9.819018089 | W138: 5.388537608 | X138: 6.592370597 | Y138: 7.271802713
I139: 0.262 | J139: 56 | K139: 81 | L139: 1092 | M139: 34.59539079 | N139: 5.099088622 | O139: 3.277142475 | P139: 1.901461095 | Q139: 6.94025756 | R139: 4.64211294 | S139: 2.329067785 | T139: 9.447261669 | U139: 4.365277379 | V139: 7.64027919 | W139: 3.689464468 | X139: 5.20873489 | Y139: 5.266727641
I140: 0.264 | J140: 71 | K140: 94 | L140: 1248 | M140: 34.59539079 | N140: 6.480558809 | O140: 4.150399925 | P140: 0.003452736756 | Q140: 6.812969354 | R140: 5.850448053 | S140: 2.636181484 | T140: 8.456122516 | U140: 5.779200375 | V140: 7.781428471 | W140: 5.725671149 | X140: 6.269747918 | Y140: 6.658560529
I141: 0.266 | J141: 145 | K141: 84 | L141: 1128 | M141: 34.59539079 | N141: 4.995560254 | O141: 6.949699408 | P141: 8.07357745 | Q141: 2.874413692 | R141: 5.552046314 | S141: 7.45025279 | T141: 1.067633465 | U141: 6.186724598 | V141: 2.132676197 | W141: 6.678222454 | X141: 4.318480591 | Y141: 3.876947389
I142: 0.268 | J142: 174 | K142: 81 | L142: 1092 | M142: 34.59539079 | N142: 5.765801605 | O142: 3.243284118 | P142: 1.775608587 | Q142: 8.479311729 | R142: 4.5361463 | S142: 1.93721293 | T142: 8.984295358 | U142: 4.132971293 | V142: 8.574433909 | W142: 4.064746679 | X142: 7.07612273 | Y142: 7.854300973
I143: 0.27 | J143: 185 | K143: 101 | L143: 1332 | M143: 34.59539079 | N143: 6.308848868 | O143: 2.60145963 | P143: 1.5870604 | Q143: 7.394518927 | R143: 5.722917032 | S143: 2.585856676 | T143: 8.961370323 | U143: 3.975501321 | V143: 8.09772471 | W143: 3.191764875 | X143: 5.732575362 | Y143: 6.454671212
I144: 0.272 | J144: 222 | K144: 105 | L144: 1380 | M144: 34.59539079 | N144: 7.38480158 | O144: 3.431926505 | P144: 2.998104956 | Q144: 7.844630527 | R144: 6.220205495 | S144: 3.418001618 | T144: 8.675768128 | U144: 5.999668812 | V144: 8.297872153 | W144: 5.87873143 | X144: 7.285990561 | Y144: 7.596034571
I145: 0.274 | J145: 239 | K145: 84 | L145: 1128 | M145: 34.59539079 | N145: 5.547287551 | O145: 8.879242878 | P145: 9.374210913 | Q145: 3.926066944 | R145: 6.959709449 | S145: 9.057946497 | T145: 1.711187131 | U145: 7.555663494 | V145: 2.931207885 | W145: 8.016939562 | X145: 6.737336892 | Y145: 4.015951249
I146: 0.276 | J146: 241 | K146: 87 | L146: 1164 | M146: 34.59539079 | N146: 6.246237641 | O146: 4.320746818 | P146: 2.273876026 | Q146: 8.169158477 | R146: 6.020749054 | S146: 2.982914554 | T146: 8.860535959 | U146: 4.959686198 | V146: 8.327721806 | W146: 4.811020034 | X146: 7.61610706 | Y146: 7.875516105
I147: 0.278 | J147: 255 | K147: 63 | L147: 876 | M147: 34.59539079 | N147: 5.766071693 | O147: 1.493195443 | P147: 1.001000788 | Q147: 7.472341137 | R147: 5.143253681 | S147: 1.447692354 | T147: 9.326036024 | U147: 4.046338526 | V147: 8.670333707 | W147: 2.80760513 | X147: 5.956540169 | Y147: 6.28842654
I148: 0.28 | J148: 294 | K148: 63 | L148: 876 | M148: 34.59539079 | N148: 5.942031184 | O148: 2.738720504 | P148: 1.291887327 | Q148: 7.53011918 | R148: 5.777114676 | S148: 1.407359495 | T148: 7.832890081 | U148: 3.872559453 | V148: 7.642015975 | W148: 3.52462894 | X148: 6.082373542 | Y148: 6.821616895
I149: 0.282 | J149: 303 | K149: 96 | L149: 1272 | M149: 34.59539079 | N149: 6.977924305 | O149: 8.338997241 | P149: 9.858306146 | Q149: 4.411420734 | R149: 7.15664594 | S149: 8.529225364 | T149: 1.538698694 | U149: 7.782057087 | V149: 3.484271922 | W149: 8.199520447 | X149: 4.932062397 | Y149: 4.482924642
I150: 0.284 | J150: 311 | K150: 74 | L150: 1008 | M150: 34.59539079 | N150: 6.542408874 | O150: 5.396541802 | P150: 1.586979793 | Q150: 8.680248637 | R150: 6.153638941 | S150: 3.423051116 | T150: 9.889548409 | U150: 6.045340052 | V150: 9.2848844 | W150: 5.604484399 | X150: 7.527180411 | Y150: 8.55927908
I151: 0.286 | J151: 349 | K151: 90 | L151: 1200 | M151: 34.59539079 | N151: 7.564517539 | O151: 3.087016929 | P151: 1.032659974 | Q151: 8.789396992 | R151: 6.879353857 | S151: 1.862713982 | T151: 9.291066587 | U151: 6.548688641 | V151: 8.836345085 | W151: 6.469961184 | X151: 7.748951381 | Y151: 8.107085791
I152: 0.288 | J152: 368 | K152: 71 | L152: 972 | M152: 34.59539079 | N152: 4.27879992 | O152: 6.603148898 | P152: 7.412142732 | Q152: 1.590159831 | R152: 5.198479488 | S152: 7.039590891 | T152: 1.107386201 | U152: 5.952010695 | V152: 1.501583416 | W152: 6.080979845 | X152: 5.002614316 | Y152: 3.562398626
I153: 0.29 | J153: 404 | K153: 64 | L153: 888 | M153: 34.59539079 | N153: 4.552272637 | O153: 8.539264449 | P153: 9.289139257 | Q153: 3.373147054 | R153: 5.850880137 | S153: 8.830214355 | T153: 1.610063805 | U153: 6.1033662 | V153: 2.254275727 | W153: 6.824300259 | X153: 4.46946831 | Y153: 4.387174398
I154: 0.292 | J154: 426 | K154: 87 | L154: 1164 | M154: 34.59539079 | N154: 7.395859398 | O154: 0.9894226771 | P154: 0.4915907217 | Q154: 7.750020849 | R154: 3.908938466 | S154: 0.5992571134 | T154: 7.906766579 | U154: 3.561345946 | V154: 7.816392762 | W154: 1.930214027 | X154: 5.341958556 | Y154: 7.500084716
I155: 0.294 | J155: 313 | K155: 59 | L155: 828 | M155: 34.67411083 | N155: 8.357220377 | O155: 1.209080302 | P155: 9.466192665 | Q155: 4.919688007 | R155: 6.873854935 | S155: 9.790264426 | T155: 4.874207109 | U155: 6.037225395 | V155: 3.599620315 | W155: 3.040278072 | X155: 7.686433304 | Y155: 9.332566366
I156: 0.296 | J156: 194 | K156: 59 | L156: 828 | M156: 34.71319378 | N156: 6.027755101 | O156: 3.372617598 | P156: 1.994984779 | Q156: 4.625129702 | R156: 6.024136505 | S156: 2.072026628 | T156: 5.210606623 | U156: 5.869253768 | V156: 5.577868716 | W156: 4.245387084 | X156: 7.165763217 | Y156: 9.26843795
I157: 0.298 | J157: 254 | K157: 69 | L157: 948 | M157: 34.71319378 | N157: 0.9707981799 | O157: 7.00454452 | P157: 7.474962267 | Q157: 5.779157829 | R157: 1.153548213 | S157: 7.245725315 | T157: 3.629476069 | U157: 2.345817268 | V157: 2.526914442 | W157: 6.345008462 | X157: 0.6925503687 | Y157: 0.650298639
I158: 0.3 | J158: 277 | K158: 97 | L158: 1284 | M158: 34.71319378 | N158: 0.3613800352 | O158: 8.583729009 | P158: 9.505526853 | Q158: 7.273061608 | R158: 5.339058578 | S158: 8.980460951 | T158: 6.321382397 | U158: 5.652351558 | V158: 6.2518465 | W158: 8.423194638 | X158: 4.257817327 | Y158: 0.3513327557
I159: 0.302 | J159: 323 | K159: 88 | L159: 1176 | M159: 34.71319378 | N159: 2.476128546 | O159: 4.927448931 | P159: 8.421998461 | Q159: 4.171118456 | R159: 2.605226026 | S159: 4.964698894 | T159: 4.010456147 | U159: 2.703169148 | V159: 3.610732727 | W159: 4.331114268 | X159: 1.989391543 | Y159: 1.907582587
I160: 0.304 | J160: 455 | K160: 73 | L160: 996 | M160: 34.71319378 | N160: 6.827918554 | O160: 1.298710905 | P160: 1.213687183 | Q160: 2.715838105 | R160: 5.366221639 | S160: 1.243324994 | T160: 4.551002546 | U160: 5.086704336 | V160: 4.977769608 | W160: 2.298607498 | X160: 6.401599971 | Y160: 8.878248311
I161: 0.306 | J161: 30 | K161: 76 | L161: 1032 | M161: 34.76754058 | N161: 5.618568206 | O161: 8.263497794 | P161: 9.716027079 | Q161: 4.020426436 | R161: 5.771507741 | S161: 8.436820277 | T161: 3.990041656 | U161: 6.543736507 | V161: 3.115280821 | W161: 7.422284287 | X161: 5.151970426 | Y161: 5.053591224
I162: 0.308 | J162: 189 | K162: 78 | L162: 1056 | M162: 34.76754058 | N162: 5.477880019 | O162: 8.209202321 | P162: 9.336203004 | Q162: 4.839029907 | R162: 5.814168598 | S162: 9.182593835 | T162: 4.660441918 | U162: 7.132414699 | V162: 2.328491631 | W162: 7.139461518 | X162: 5.77537505 | Y162: 5.024444886
I163: 0.31 | J163: 476 | K163: 79 | L163: 1068 | M163: 34.76754058 | N163: 3.544200062 | O163: 7.738395419 | P163: 9.66804485 | Q163: 2.685755367 | R163: 6.420283171 | S163: 8.316738283 | T163: 2.532513454 | U163: 7.425876149 | V163: 0.5333520802 | W163: 7.443151447 | X163: 6.19807045 | Y163: 3.267911154
I164: 0.312 | J164: 13 | K164: 78 | L164: 1056 | M164: 34.76754058 | N164: 6.067499998 | O164: 1.67804929 | P164: 0.6310900337 | Q164: 7.464454338 | R164: 3.186641906 | S164: 1.051597378 | T164: 7.522598079 | U164: 2.768031862 | V164: 9.17784347 | W164: 2.738549166 | X164: 3.685513725 | Y164: 6.959736891
I165: 0.314 | J165: 292 | K165: 55 | L165: 780 | M165: 34.76754058 | N165: 6.802337717 | O165: 2.03770446 | P165: 1.184044155 | Q165: 7.645043609 | R165: 6.134103165 | S165: 1.470244724 | T165: 8.21961898 | U165: 5.65517237 | V165: 9.992091276 | W165: 2.820717048 | X165: 6.254140811 | Y165: 7.301523413
I166: 0.316 | J166: 386 | K166: 79 | L166: 1068 | M166: 34.76754058 | N166: 5.916507252 | O166: 2.747217424 | P166: 0.9996870041 | Q166: 7.885228832 | R166: 5.356269673 | S166: 2.5315622 | T166: 7.886416305 | U166: 3.405791747 | V166: 9.429151405 | W166: 3.356257049 | X166: 5.706688523 | Y166: 6.223319491
I167: 0.318 | J167: 162 | K167: 68 | L167: 936 | M167: 34.78745349 | N167: 6.404567578 | O167: 1.470940635 | P167: 9.54539192 | Q167: 3.362767382 | R167: 6.1731849 | S167: 0.9812316149 | T167: 2.484113029 | U167: 3.720572562 | V167: 2.817864416 | W167: 1.959162092 | X167: 4.880888009 | Y167: 6.772904751
I168: 0.32 | J168: 359 | K168: 74 | L168: 1008 | M168: 34.81849652 | N168: 3.56524484 | O168: 7.56338782 | P168: 8.554370065 | Q168: 7.079708511 | R168: 5.019605705 | S168: 7.646161493 | T168: 7.341388361 | U168: 5.761672635 | V168: 1.009977648 | W168: 7.495764099 | X168: 3.282467864 | Y168: 1.761930192
I169: 0.322 | J169: 450 | K169: 90 | L169: 1200 | M169: 34.81849652 | N169: 5.98538783 | O169: 2.06381481 | P169: 1.465224574 | Q169: 2.467159544 | R169: 2.960035308 | S169: 1.802191455 | T169: 2.211446098 | U169: 2.687677169 | V169: 8.460076977 | W169: 2.210632451 | X169: 4.575795894 | Y169: 6.316278604
I170: 0.324 | J170: 465 | K170: 69 | L170: 948 | M170: 34.81849652 | N170: 7.398616759 | O170: 2.200820204 | P170: 0.217811913 | Q170: 3.732640206 | R170: 5.758276685 | S170: 1.787298164 | T170: 3.279498439 | U170: 4.882415906 | V170: 9.922008344 | W170: 2.815080287 | X170: 5.762081325 | Y170: 8.312191775
I171: 0.326 | J171: 315 | K171: 108 | L171: 1416 | M171: 34.84071444 | N171: 2.696960899 | O171: 1.544506479 | P171: 0.4745775817 | Q171: 2.488814746 | R171: 3.473739132 | S171: 1.207753955 | T171: 4.612878468 | U171: 2.669574475 | V171: 4.524797518 | W171: 2.486355955 | X171: 4.06714749 | Y171: 4.519591697
I172: 0.328 | J172: 436 | K172: 82 | L172: 1104 | M172: 34.90188282 | N172: 3.936619328 | O172: 7.741743333 | P172: 8.806810088 | Q172: 5.294818897 | R172: 2.436868541 | S172: 1.057421618 | T172: 5.710047273 | U172: 4.59455816 | V172: 5.698525974 | W172: 6.924488438 | X172: 2.40569007 | Y172: 1.384930976
I173: 0.33 | J173: 24 | K173: 60 | L173: 840 | M173: 34.98981868 | N173: 4.18761489 | O173: 6.349727249 | P173: 9.847280584 | Q173: 1.150926059 | R173: 3.315097603 | S173: 7.029508227 | T173: 0.1363516851 | U173: 1.644131422 | V173: 4.522604801 | W173: 5.761563415 | X173: 4.043068858 | Y173: 4.447924968
I174: 0.332 | J174: 35 | K174: 92 | L174: 1224 | M174: 34.98981868 | N174: 4.01498722 | O174: 8.924211923 | P174: 9.324674297 | Q174: 3.533767672 | R174: 4.002064574 | S174: 9.106981611 | T174: 3.532334056 | U174: 3.714636381 | V174: 7.014480821 | W174: 8.445967323 | X174: 5.030173018 | Y174: 5.161631696
I175: 0.334 | J175: 81 | K175: 99 | L175: 1308 | M175: 34.98981868 | N175: 6.036716874 | O175: 6.658626751 | P175: 8.69893567 | Q175: 2.328201971 | R175: 4.314509998 | S175: 7.468227076 | T175: 1.634520875 | U175: 3.822905867 | V175: 6.542570483 | W175: 6.624494583 | X175: 5.867730004 | Y175: 6.453783893
I176: 0.336 | J176: 115 | K176: 91 | L176: 1212 | M176: 34.98981868 | N176: 1.535869143 | O176: 7.475945523 | P176: 9.213238134 | Q176: 0.6748559544 | R176: 0.8235667418 | S176: 8.330536936 | T176: 0.6143970682 | U176: 0.7066800445 | V176: 3.074365967 | W176: 5.900194928 | X176: 0.8318144244 | Y176: 1.56252831
I177: 0.338 | J177: 446 | K177: 64 | L177: 888 | M177: 34.98981868 | N177: 7.071294662 | O177: 9.190253606 | P177: 9.916331022 | Q177: 3.553454941 | R177: 5.022745072 | S177: 9.486858917 | T177: 2.373125818 | U177: 4.890191968 | V177: 8.040595161 | W177: 9.032953822 | X177: 5.788142697 | Y177: 7.090039497
I178: 0.34 | J178: 471 | K178: 78 | L178: 1056 | M178: 34.98981868 | N178: 6.535012162 | O178: 8.218920057 | P178: 9.048725585 | Q178: 2.656086151 | R178: 5.014737301 | S178: 9.020535513 | T178: 1.224311595 | U178: 3.619145093 | V178: 7.266066455 | W178: 7.799867554 | X178: 5.674178017 | Y178: 6.830320869
I179: 0.342 | J179: 9 | K179: 75 | L179: 1020 | M179: 34.98981868 | N179: 5.655082968 | O179: 2.035034943 | P179: 1.244515606 | Q179: 7.547782802 | R179: 5.795955881 | S179: 1.890143003 | T179: 8.882069554 | U179: 6.553052564 | V179: 4.251702224 | W179: 2.579893222 | X179: 5.784734624 | Y179: 5.132886091
I180: 0.344 | J180: 100 | K180: 67 | L180: 924 | M180: 34.98981868 | N180: 8.332885153 | O180: 3.535364698 | P180: 0.4469589885 | Q180: 9.344430163 | R180: 8.681912111 | S180: 1.478710134 | T180: 9.782198765 | U180: 8.782930054 | V180: 4.298984567 | W180: 4.078797819 | X180: 7.772026477 | Y180: 7.527754446
I181: 0.346 | J181: 129 | K181: 69 | L181: 948 | M181: 34.98981868 | N181: 6.763838465 | O181: 2.002604878 | P181: 0.3813470202 | Q181: 8.242453332 | R181: 7.226467542 | S181: 0.5076025423 | T181: 9.177604656 | U181: 7.422915698 | V181: 3.800328549 | W181: 2.91787134 | X181: 4.909488753 | Y181: 4.725391357
I182: 0.348 | J182: 238 | K182: 62 | L182: 864 | M182: 34.98981868 | N182: 4.696979924 | O182: 2.579161055 | P182: 1.269694929 | Q182: 7.989139918 | R182: 5.564596263 | S182: 2.361948275 | T182: 8.968712127 | U182: 6.95362555 | V182: 4.040156953 | W182: 3.232029008 | X182: 4.324124109 | Y182: 4.268387512
I183: 0.35 | J183: 279 | K183: 84 | L183: 1128 | M183: 34.98981868 | N183: 5.097163772 | O183: 1.203975975 | P183: 0.002336667647 | Q183: 9.650258945 | R183: 7.654975186 | S183: 0.2939149088 | T183: 9.65951359 | U183: 9.022276675 | V183: 3.524368944 | W183: 1.412747047 | X183: 5.21136359 | Y183: 3.664736403
I184: 0.352 | J184: 321 | K184: 77 | L184: 1044 | M184: 34.98981868 | N184: 4.326723588 | O184: 2.079807454 | P184: 1.461239425 | Q184: 7.13955627 | R184: 4.861662611 | S184: 1.487308246 | T184: 7.965085637 | U184: 6.052477268 | V184: 3.149884825 | W184: 2.338954057 | X184: 4.027584834 | Y184: 3.571784241
I185: 0.354 | J185: 361 | K185: 96 | L185: 1272 | M185: 34.98981868 | N185: 6.247768931 | O185: 3.555621783 | P185: 0.8370084041 | Q185: 7.577124241 | R185: 6.88385128 | S185: 2.598562218 | T185: 8.898783921 | U185: 7.244626492 | V185: 4.626156763 | W185: 4.239224366 | X185: 5.817337022 | Y185: 5.739813142
I186: 0.356 | J186: 371 | K186: 68 | L186: 936 | M186: 34.98981868 | N186: 5.579046254 | O186: 2.9520382 | P186: 2.3779558 | Q186: 8.675592409 | R186: 6.750139707 | S186: 2.812476753 | T186: 9.451257112 | U186: 7.864498618 | V186: 4.249946308 | W186: 4.148492675 | X186: 6.580085156 | Y186: 5.064932218
I187: 0.358 | J187: 372 | K187: 79 | L187: 1068 | M187: 34.98981868 | N187: 5.45753406 | O187: 3.175867684 | P187: 0.9690345087 | Q187: 8.225086961 | R187: 5.567243375 | S187: 1.453827101 | T187: 8.34904498 | U187: 6.94731095 | V187: 3.98000787 | W187: 3.573587152 | X187: 4.840366754 | Y187: 4.777772018
I188: 0.36 | J188: 398 | K188: 63 | L188: 876 | M188: 34.98981868 | N188: 6.244390392 | O188: 2.84303137 | P188: 1.681546071 | Q188: 7.967613683 | R188: 7.063217948 | S188: 2.475359294 | T188: 9.119604846 | U188: 7.165455174 | V188: 4.95501481 | W188: 3.243445229 | X188: 5.950894004 | Y188: 5.595933157
I189: 0.362 | J189: 417 | K189: 60 | L189: 840 | M189: 34.98981868 | N189: 6.324804259 | O189: 2.253737966 | P189: 0.703508341 | Q189: 7.487156618 | R189: 6.449540285 | S189: 0.9364459339 | T189: 8.073531115 | U189: 7.010744161 | V189: 4.164121273 | W189: 2.566884566 | X189: 6.234655871 | Y189: 4.688355454
I190: 0.364 | J190: 7 | K190: 85 | L190: 1140 | M190: 34.9918834 | N190: 3.680276092 | O190: 7.259950174 | P190: 8.59226727 | Q190: 0.3804779417 | R190: 2.891535941 | S190: 8.406676406 | T190: 5.281242087 | U190: 1.215231105 | V190: 4.687485984 | W190: 5.356320285 | X190: 3.241703427 | Y190: 4.031632446
I191: 0.366 | J191: 16 | K191: 49 | L191: 708 | M191: 34.9918834 | N191: 6.981375743 | O191: 1.712477606 | P191: 0.01449212254 | Q191: 9.577768567 | R191: 8.740787133 | S191: 0.3859096315 | T191: 3.267486529 | U191: 9.534639375 | V191: 4.713294875 | W191: 2.019859842 | X191: 7.206903089 | Y191: 5.560778247
I192: 0.368 | J192: 39 | K192: 65 | L192: 900 | M192: 34.9918834 | N192: 2.264761393 | O192: 5.750335075 | P192: 6.922591296 | Q192: 0.4322103506 | R192: 1.836474246 | S192: 6.872455947 | T192: 4.720394626 | U192: 1.405832475 | V192: 4.12789505 | W192: 5.00735348 | X192: 2.533039973 | Y192: 3.284653143
I193: 0.37 | J193: 40 | K193: 69 | L193: 948 | M193: 34.9918834 | N193: 8.281719647 | O193: 2.884390123 | P193: 1.904727684 | Q193: 9.934352946 | R193: 8.584891891 | S193: 2.682850136 | T193: 3.119644366 | U193: 8.948691932 | V193: 3.955529396 | W193: 3.051768115 | X193: 7.238693537 | Y193: 5.921923823
I194: 0.372 | J194: 43 | K194: 71 | L194: 972 | M194: 34.9918834 | N194: 8.154215189 | O194: 1.198409962 | P194: 0.4727992396 | Q194: 9.619765523 | R194: 8.38955651 | S194: 0.6323009863 | T194: 4.711357102 | U194: 8.668474767 | V194: 5.533107134 | W194: 4.190419711 | X194: 8.288223273 | Y194: 7.776214263
I195: 0.374 | J195: 64 | K195: 104 | L195: 1368 | M195: 34.9918834 | N195: 6.715777755 | O195: 2.171184687 | P195: 2.053049456 | Q195: 8.348125502 | R195: 7.28929921 | S195: 2.05894148 | T195: 3.520195669 | U195: 8.146380987 | V195: 4.006916433 | W195: 3.020211073 | X195: 6.069102155 | Y195: 5.744356971
I196: 0.376 | J196: 69 | K196: 82 | L196: 1104 | M196: 34.9918834 | N196: 4.241668729 | O196: 6.194445064 | P196: 9.609462308 | Q196: 1.528712505 | R196: 2.902168007 | S196: 9.202166837 | T196: 4.942278737 | U196: 1.633048481 | V196: 4.577280267 | W196: 4.955326548 | X196: 3.361402071 | Y196: 4.323094937
I197: 0.378 | J197: 91 | K197: 69 | L197: 948 | M197: 34.9918834 | N197: 4.717902648 | O197: 2.11683877 | P197: 1.2041475 | Q197: 6.861374372 | R197: 5.785974792 | S197: 1.347897442 | T197: 3.178277413 | U197: 6.69750249 | V197: 3.283570663 | W197: 3.080115 | X197: 5.193945981 | Y197: 4.285679291
I198: 0.38 | J198: 113 | K198: 85 | L198: 1140 | M198: 34.9918834 | N198: 4.276640578 | O198: 7.003916721 | P198: 7.971372831 | Q198: 0.73451386 | R198: 3.44147286 | S198: 7.006846286 | T198: 5.539343501 | U198: 1.907482341 | V198: 5.511162588 | W198: 6.212717718 | X198: 4.451410522 | Y198: 5.308810385
I199: 0.382 | J199: 137 | K199: 95 | L199: 1260 | M199: 34.9918834 | N199: 5.178826131 | O199: 2.355787926 | P199: 1.856980577 | Q199: 8.053080681 | R199: 6.429244124 | S199: 2.017801489 | T199: 2.817851119 | U199: 6.493586617 | V199: 3.188355728 | W199: 2.361688311 | X199: 4.548625557 | Y199: 3.64073705
I200: 0.384 | J200: 200 | K200: 74 | L200: 1008 | M200: 34.9918834 | N200: 7.38954117 | O200: 2.980901119 | P200: 1.364483143 | Q200: 8.70108398 | R200: 7.414644723 | S200: 1.438415331 | T200: 4.574450715 | U200: 8.179847676 | V200: 5.623671782 | W200: 4.158325906 | X200: 6.649138485 | Y200: 6.468975826
... 308 more rows

Sheet Analysis
E2: 75 trials | L2: SSD= | M2: =SUM(N7:N30) -> 24.51013106
L3: beta= | M3: 103555.8052
E4: 100 trials | G4: Option "A" | I4: Convergence based on deltaOF=0 | L4: f= | M4: 4.175351398e-09 | O4: =2/(12*11*10*9*8*7*6*5*4*3*2) -> 4.175351398e-09
D6: N Players | E6: p-Global | F6: ANOFE | G6: sigmaNOFE | H6: PNOFE-99 | I6: 2sigmaP | J6: LCL | K6: UCL | M6: p-global model | N6: d^2
D7: 60 | E7: 0.01 | F7: 580 | G7: =0.2*F7 -> 116 | H7: =F7*LN(1-0.99)/LN(1-E7) -> 265762.1344 | I7: =2*SQRT(E7*(1-E7)/100) -> 0.01989974874 | J7: =(F7-2*G7)*LN(1-0.99)/LN(1-E7-I7) -> 52793.73311 | K7: =(F7+2*G7)*LN(1-0.99)/LN(1-E7+I7) -> -379593.2049 | M7: =1-(1-$M$4)^($M$3*D7) -> 0.02560928657 | N7: =((E7-M7)^2)*100/(E7*(1-E7)) -> 2.461109366
D8: 120 | E8: 0.06 | F8: 1211 | G8: =0.2*F8 -> 242.2 | H8: =F8*LN(1-0.99)/LN(1-E8) -> 90130.50033 | I8: =2*SQRT(E8*(1-E8)/100) -> 0.04749736835 | J8: =(F8-2*G8)*LN(1-0.99)/LN(1-E8-I8) -> 29422.66544 | K8: =(F8+2*G8)*LN(1-0.99)/LN(1-E8+I8) -> 620564.9815 | M8: =1-(1-$M$4)^($M$3*D8) -> 0.05056273758 | N8: =((E8-M8)^2)*100/(E8*(1-E8)) -> 0.1579112092
D9: 120 | E9: 0.05 | F9: 1179 | G9: 235.8 | H9: 105851.9581 | I9: 0.04358898944 | J9: 33153.0338 | K9: 1181857.638 | M9: 0.05056273758 | N9: 0.000666681228
D10: 120 | E10: 0.05 | F10: 1185 | G10: 237 | H10: 106390.6449 | I10: 0.04358898944 | J10: 33321.75152 | K10: 1187872.181 | M10: 0.05056273758 | N10: 0.000666681228
D11: 240 | E11: 0.11 | F11: 2273 | G11: 454.6 | H11: 89824.15722 | I11: 0.06257795139 | J11: 33153.07534 | K11: 301637.837 | M11: 0.09856888473 | N11: 0.1334733364
D12: 240 | E12: 0.13 | F12: 2289 | G12: 457.8 | H12: 75693.50906 | I12: 0.06726068688 | J12: 28784.7686 | K12: 227764.4402 | M12: 0.09856888473 | N12: 0.8734880701
D13: 240 | E13: 0.11 | F13: 2284 | G13: 456.8 | H13: 90258.85398 | I13: 0.06257795139 | J13: 33313.51697 | K13: 303097.5889 | M13: 0.09856888473 | N13: 0.1334733364
D14: 600 | E14: 0.21 | F14: 5228 | G14: 943 | H14: 102136.3966 | I14: 0.08146164742 | J14: 44668.20522 | K14: 238118.6636 | M14: 0.2285081154 | N14: 0.2064800096
D15: 120 | E15: 0.05 | F15: 1221 | G15: 224 | H15: =F15*LN(1-0.99)/LN(1-E15) -> 109622.7658 | I15: =2*SQRT(E15*(1-E15)/100) -> 0.04358898944 | J15: =(F15-2*G15)*LN(1-0.99)/LN(1-E15-I15) -> 36227.44575 | K15: =(F15+2*G15)*LN(1-0.99)/LN(1-E15+I15) -> 1195032.35 | M15: 0.05056273758 | N15: =((E15-M15)^2)*100/(E15*(1-E15)) -> 0.000666681228
D16: 60 | E16: 0.01 | F16: 564 | G16: 107 | H16: 258430.7652 | I16: 0.01989974874 | J16: 53097.14537 | K16: -363698.9081 | M16: 0.02560928657 | N16: 2.461109366
D17: 60 | E17: 0.02 | F17: 557 | G17: 122 | H17: 126967.1313 | I17: 0.028 | J17: 29302.92972 | K17: -462934.5862 | M17: 0.02560928657 | N17: 0.1605311011
D18: 600 | E18: 0.22 | F18: 5429 | G18: 1001 | H18: 100625.1797 | I18: 0.08284926071 | J18: 43747.08174 | K18: 231982.8935 | M18: 0.2285081154 | N18: 0.04218416536
D19: 600 | E19: 0.22 | F19: 5447 | G19: 1046 | H19: 100958.8053 | I19: 0.08284926071 | J19: 42827.97176 | K19: 235354.4656 | M19: 0.2285081154 | N19: 0.04218416536
D20: 120 | E20: 0.06 | F20: 1146 | G20: 189 | H20: 85292.77736 | I20: 0.04749736835 | J20: 31099.10138 | K20: 557827.6701 | M20: 0.05056273758 | N20: 0.1579112092
D21: 240 | E21: 0.17 | F21: 2313 | G21: 493 | H21: 57166.22526 | I21: 0.07512655988 | J21: 21731.68003 | K21: 152411.5194 | M21: 0.09856888473 | N21: 3.61616175
D22: 240 | E22: 0.12 | F22: 2310 | G22: 394 | H22: 83217.26169 | I22: 0.06499230724 | J22: 34264.50388 | K22: 252159.7294 | M22: 0.09856888473 | N22: 0.4349362707
D23: 420 | E23: 0.2 | F23: 3816 | G23: 673 | H23: 78753.47204 | I23: 0.08 | J23: 34625.9651 | K23: 185959.9588 | M23: 0.1660654762 | N23: 0.7197199402
D24: 420 | E24: 0.25 | F24: 3778 | G24: 656 | H24: 60477.64052 | I24: 0.08660254038 | J24: 27672.69972 | K24: 131387.3533 | M24: 0.1660654762 | N24: 3.757335617
D25: 60 | E25: 0.02 | F25: 558 | G25: 109 | H25: 127195.0795 | I25: 0.028 | J25: 31830.65848 | K25: -448485.9411 | M25: 0.02560928657 | N25: 0.1605311011
D26: 60 | E26: 0.02 | F26: 590 | G26: 127 | H26: 134489.421 | I26: 0.028 | J26: 31456.18014 | K26: -487786.2556 | M26: 0.02560928657 | N26: 0.1605311011
D27: 200 | E27: 0.11 | F27: 1903 | G27: 366 | H27: 75202.53902 | I27: 0.06257795139 | J27: 28466.23495 | K27: 249769.2478 | M27: 0.08284278401 | N27: 0.7533344029
D28: 350 | E28: 0.22 | F28: 3234 | G28: 572 | H28: 59941.3946 | I28: 0.08284926071 | J28: 26679.72011 | K28: 136673.5443 | M28: 0.1404391477 | N28: 3.688769945
D29: 600 | E29: 0.18 | F29: 5407 | G29: 1107 | H29: 125472.5997 | I29: 0.07683749085 | J29: 49536.05227 | K29: 322334.7505 | M29: 0.2285081154 | N29: 1.594198686
D30: 900 | E30: 0.25 | F30: 7682 | G30: 1182 | H30: 122972.2696 | I30: 0.08660254038 | J30: 59676.97368 | K30: 259315.786 | M30: 0.3223631062 | N30: 2.792756873

Sheet Sheet3
